Workbook

Sheet INICIO
C3: MINISTERIO DE SALUD | G3: CENTRO NACIONAL DE ALIMENTACIÓN Y NUTRICIÓN
C4: INSTITUTO NACIONAL DE SALUD | G4: DIRECCIÓN EJECUTIVA DE VIGILANCIA ALIMENTARIA Y NUTRICIONAL
C6: PERÚ: INDICADORES NUTRICIONALES EN GESTANTES
C7: SISTEMA DE INFORMACIÓN DEL ESTADO NUTRICIONAL
C8: PERIODO: ENERO A DICIEMBRE - 2022
C10: 1 | D10: ESTADO NUTRICIONAL EN GESTANTES POR IMC-PG Y CLAP SEGÚN DEPARTAMENTO DEL EESS
C11: 2 | D11: ESTADO NUTRICIONAL EN GESTANTES POR IMC-PG Y CLAP SEGÚN DIRESA / GERESA / DISA
C12: 3 | D12: ESTADO NUTRICIONAL EN GESTANTES POR IMC-PG Y CLAP SEGÚN DEPARTAMENTO / PROVINCIA / DISTRITO DE ORIGEN
C13: 4 | D13: ANEMIA EN GESTANTES POR NIVELES SEGÚN DEPARTAMENTO DEL EESS
C14: 5 | D14: ANEMIA EN GESTANTES POR NIVELES SEGÚN DIRESA / GERESA / DISA
C15: 6 | D15: ANEMIA EN GESTANTES POR NIVELES SEGÚN DEPARTAMENTO / PROVINCIA / DISTRITO DE ORIGEN

Sheet IMC_PG-CLAP x DEP
B2: CUADRO N°01 PERÚ: ESTADO NUTRICIONAL EN GESTANTES QUE ACCEDIERON A LOS ESTABLECIMIENTOS DE SALUD SEGÚN INDICE DE MASA CORPORAL PRE-GESTACIONAL Y CENTRO LATINOAMERICANO DE PERINATOLOGIA, POR DEPARTAMENTO
B3: =INICIO!C$8 -> PERIODO: ENERO A DICIEMBRE - 2022
B5: DEPARTAMENTO | C5: INDICADORES IMC PRE-GESTACIONAL1 | J5: INDICADORES CLAP2
C6: N° DE EVALUADAS | D6: BAJO PESO | F6: SOBREPESO | H6: OBESIDAD | J6: N° DE EVALUADAS | K6: DÉFICIT DE PESO | M6: SOBREPESO
D7: N° DE CASOS | E7: % | F7: N° DE CASOS | G7: % | H7: N° DE CASOS | I7: % | K7: N° DE CASOS | L7: % | M7: N° DE CASOS | N7: %
B8: AMAZONAS | C8: 13915 | D8: 344 | E8: 2.472152354 | F8: 3752 | G8: 26.96370823 | H8: 1068 | I8: 7.675170679 | J8: 12219 | K8: 2095 | L8: 17.14542925 | M8: 3635 | N8: 29.74875194
B9: ÁNCASH | C9: 16151 | D9: 223 | E9: 1.38071946 | F9: 5830 | G9: 36.09683611 | H9: 2196 | I9: 13.59668132 | J9: 14413 | K9: 1052 | L9: 7.298966211 | M9: 7081 | N9: 49.12925831
B10: APURÍMAC | C10: 9822 | D10: 128 | E10: 1.303196905 | F10: 3454 | G10: 35.16595398 | H10: 1135 | I10: 11.55569131 | J10: 8868 | K10: 555 | L10: 6.258457375 | M10: 4375 | N10: 49.33468651
B11: AREQUIPA | C11: (SD) | D11: (SD) | E11: (SD) | F11: (SD) | G11: (SD) | H11: (SD) | I11: (SD) | J11: (SD) | K11: (SD) | L11: (SD) | M11: (SD) | N11: (SD)
B12: AYACUCHO | C12: 15381 | D12: 316 | E12: 2.054482803 | F12: 5084 | G12: 33.05376764 | H12: 1798 | I12: 11.68974709 | J12: 13951 | K12: 1188 | L12: 8.515518601 | M12: 6376 | N12: 45.702817
B13: CAJAMARCA | C13: 33620 | D13: 462 | E13: 1.374182035 | F13: 12146 | G13: 36.12730518 | H13: 4021 | I13: 11.96014277 | J13: 30107 | K13: 2676 | L13: 8.888298402 | M13: 13675 | N13: 45.42133059
B14: CALLAO | C14: (SD) | D14: (SD) | E14: (SD) | F14: (SD) | G14: (SD) | H14: (SD) | I14: (SD) | J14: (SD) | K14: (SD) | L14: (SD) | M14: (SD) | N14: (SD)
B15: CUSCO | C15: 29907 | D15: 481 | E15: 1.608319123 | F15: 10404 | G15: 34.78784231 | H15: 3751 | I15: 12.5422142 | J15: 26970 | K15: 1901 | L15: 7.048572488 | M15: 13249 | N15: 49.12495365
B16: HUANCAVELICA | C16: 9191 | D16: 128 | E16: 1.392666739 | F16: 2832 | G16: 30.8127516 | H16: 767 | I16: 8.345120226 | J16: 8171 | K16: 690 | L16: 8.444498837 | M16: 3245 | N16: 39.71362134
B17: HUÁNUCO | C17: (SD) | D17: (SD) | E17: (SD) | F17: (SD) | G17: (SD) | H17: (SD) | I17: (SD) | J17: (SD) | K17: (SD) | L17: (SD) | M17: (SD) | N17: (SD)
B18: ICA | C18: 12076 | D18: 285 | E18: 2.360052998 | F18: 4136 | G18: 34.24975157 | H18: 2771 | I18: 22.94633985 | J18: 11124 | K18: 883 | L18: 7.937792161 | M18: 6550 | N18: 58.88169723
B19: JUNÍN | C19: 24419 | D19: 519 | E19: 2.12539416 | F19: 7521 | G19: 30.79978705 | H19: 2777 | I19: 11.37229207 | J19: 21981 | K19: 2607 | L19: 11.86024294 | M19: 9190 | N19: 41.8088349
B20: LA LIBERTAD | C20: 31228 | D20: 468 | E20: 1.498655053 | F20: 11214 | G20: 35.9100807 | H20: 5319 | I20: 17.03279108 | J20: 28053 | K20: 2239 | L20: 7.981321071 | M20: 14388 | N20: 51.28863223
B21: LAMBAYEQUE | C21: 7780 | D21: 136 | E21: 1.748071979 | F21: 2788 | G21: 35.83547558 | H21: 1283 | I21: 16.49100257 | J21: 6829 | K21: 547 | L21: 8.009957534 | M21: 3260 | N21: 47.73758969
B22: LIMA | C22: 32677 | D22: 524 | E22: 1.60357438 | F22: 12114 | G22: 37.07194663 | H22: 7155 | I22: 21.8961349 | J22: 29417 | K22: 2004 | L22: 6.812387395 | M22: 17369 | N22: 59.04409015
B23: LORETO | C23: 23815 | D23: 738 | E23: 3.098887256 | F23: 7378 | G23: 30.98047449 | H23: 3529 | I23: 14.81839177 | J23: 21510 | K23: 3761 | L23: 17.48489075 | M23: 8177 | N23: 38.0148768
B24: MADRE DE DIOS | C24: 6916 | D24: 118 | E24: 1.706188548 | F24: 2525 | G24: 36.50954309 | H24: 1631 | I24: 23.58299595 | J24: 6215 | K24: 421 | L24: 6.773934031 | M24: 3680 | N24: 59.21158488
B25: MOQUEGUA | C25: (SD) | D25: (SD) | E25: (SD) | F25: (SD) | G25: (SD) | H25: (SD) | I25: (SD) | J25: (SD) | K25: (SD) | L25: (SD) | M25: (SD) | N25: (SD)
B26: PASCO | C26: 5274 | D26: 97 | E26: 1.839211225 | F26: 1731 | G26: 32.82138794 | H26: 593 | I26: 11.24383769 | J26: 4713 | K26: 493 | L26: 10.4604286 | M26: 2008 | N26: 42.60555909
B27: PIURA | C27: 24540 | D27: 621 | E27: 2.530562347 | F27: 8624 | G27: 35.14262429 | H27: 4664 | I27: 19.00570497 | J27: 22064 | K27: 2180 | L27: 9.880348078 | M27: 11082 | N27: 50.22661349
B28: PUNO | C28: 20702 | D28: 232 | E28: 1.12066467 | F28: 7501 | G28: 36.23321418 | H28: 2899 | I28: 14.00347792 | J28: 19222 | K28: 1190 | L28: 6.190823015 | M28: 10107 | N28: 52.58037665
B29: SAN MARTÍN | C29: 15879 | D29: 445 | E29: 2.802443479 | F29: 5508 | G29: 34.68732288 | H29: 2400 | I29: 15.11430191 | J29: 14321 | K29: 1814 | L29: 12.66671322 | M29: 6542 | N29: 45.68116752
B30: TACNA | C30: 4294 | D30: 35 | E30: 0.8150908244 | F30: 1661 | G30: 38.6818817 | H30: 1164 | I30: 27.10759199 | J30: 4097 | K30: 146 | L30: 3.56358311 | M30: 2793 | N30: 68.17183305
B31: TUMBES | C31: 5230 | D31: 215 | E31: 4.110898662 | F31: 1767 | G31: 33.78585086 | H31: 1252 | I31: 23.93881453 | J31: 4710 | K31: 448 | L31: 9.511677282 | M31: 2806 | N31: 59.57537155
B32: UCAYALI | C32: (SD) | D32: (SD) | E32: (SD) | F32: (SD) | G32: (SD) | H32: (SD) | I32: (SD) | J32: (SD) | K32: (SD) | L32: (SD) | M32: (SD) | N32: (SD)
B33: PERÚ | C33: =SUM(C8:C32) -> 342817 | D33: =SUM(D8:D32) -> 6515 | E33: =D33/C33*100 -> 1.900430842 | F33: =SUM(F8:F32) -> 117970 | G33: =F33/C33*100 -> 34.41194573 | H33: =SUM(H8:H32) -> 52173 | I33: =H33/C33*100 -> 15.21890688 | J33: =SUM(J8:J32) -> 308955 | K33: =SUM(K8:K32) -> 28890 | L33: =K33/J33*100 -> 9.350876341 | M33: =SUM(M8:M32) -> 149588 | N33: =M33/J33*100 -> 48.41740707
B34: =CONCATENATE("Fuente: Sistema de Información del Estado Nutricional en gestantes que acceden al establecimiento de salud, ",RIGHT(INICIO!C$8,4),".") -> Fuente: Sistema de Información del Estado Nutricional en gestantes que acceden al establecimiento de salud, 2022.
B35: Instituto Nacional de Salud / Centro Nacional de Alimentación y Nutrición / Dirección Ejecutiva de Vigilancia Alimentaria y Nutricional.
B36: 1 Indicadores Nutricionales según Índice de Masa Corporal Pre gestacional (IMC-PG) del Instituto de Medicina de EEUU (IOM).
B37: 2 Indicadores Nutricionales según Centro Latinoamericano de Perinatologia (CLAP).
B38: (SD) Diresas sin registro de gestantes

Sheet IMC_PG-CLAP x DIRESA
B2: CUADRO N°02 PERÚ: ESTADO NUTRICIONAL EN GESTANTES QUE ACCEDIERON A LOS ESTABLECIMIENTOS DE SALUD SEGÚN INDICE DE MASA CORPORAL PRE-GESTACIONAL Y CENTRO LATINOAMERICANO DE PERINATOLOGIA, SEGÚN DIRESA / GERESA / DISA
B3: =INICIO!C$8 -> PERIODO: ENERO A DICIEMBRE - 2022
B5: DIRESA / GERESA / DISA | C5: INDICADORES IMC PRE-GESTACIONAL1 | J5: INDICADORES CLAP2
C6: N° DE EVALUADAS | D6: BAJO PESO | F6: SOBREPESO | H6: OBESIDAD | J6: N° DE EVALUADAS | K6: DÉFICIT DE PESO | M6: SOBREPESO
D7: N° DE CASOS | E7: % | F7: N° DE CASOS | G7: % | H7: N° DE CASOS | I7: % | K7: N° DE CASOS | L7: % | M7: N° DE CASOS | N7: %
B8: AMAZONAS | C8: 13915 | D8: 344 | E8: 2.472152354 | F8: 3752 | G8: 26.96370823 | H8: 1068 | I8: 7.675170679 | J8: 12219 | K8: 2095 | L8: 17.14542925 | M8: 3635 | N8: 29.74875194
B9: ÁNCASH | C9: 16151 | D9: 223 | E9: 1.38071946 | F9: 5830 | G9: 36.09683611 | H9: 2196 | I9: 13.59668132 | J9: 14413 | K9: 1052 | L9: 7.298966211 | M9: 7081 | N9: 49.12925831
B10: ANDAHUAYLAS | C10: 3544 | D10: 55 | E10: 1.551918736 | F10: 1237 | G10: 34.90406321 | H10: 390 | I10: 11.00451467 | J10: 3191 | K10: 179 | L10: 5.609526794 | M10: 1626 | N10: 50.95581322
B11: APURÍMAC | C11: 6278 | D11: 73 | E11: 1.162790698 | F11: 2217 | G11: 35.3137942 | H11: 745 | I11: 11.86683657 | J11: 5677 | K11: 376 | L11: 6.623216488 | M11: 2749 | N11: 48.4234631
B12: AREQUIPA | C12: (SD) | D12: (SD) | E12: (SD) | F12: (SD) | G12: (SD) | H12: (SD) | I12: (SD) | J12: (SD) | K12: (SD) | L12: (SD) | M12: (SD) | N12: (SD)
B13: AYACUCHO | C13: 15381 | D13: 316 | E13: 2.054482803 | F13: 5084 | G13: 33.05376764 | H13: 1798 | I13: 11.68974709 | J13: 13951 | K13: 1188 | L13: 8.515518601 | M13: 6376 | N13: 45.702817
B14: CAJAMARCA | C14: 18429 | D14: 205 | E14: 1.112377232 | F14: 6819 | G14: 37.00146508 | H14: 2385 | I14: 12.9415595 | J14: 16578 | K14: 1312 | L14: 7.914103028 | M14: 7846 | N14: 47.32778381
B15: CALLAO | C15: (SD) | D15: (SD) | E15: (SD) | F15: (SD) | G15: (SD) | H15: (SD) | I15: (SD) | J15: (SD) | K15: (SD) | L15: (SD) | M15: (SD) | N15: (SD)
B16: CHOTA | C16: 3627 | D16: 41 | E16: 1.130410808 | F16: 1356 | G16: 37.38626964 | H16: 445 | I16: 12.26909291 | J16: 3285 | K16: 258 | L16: 7.853881279 | M16: 1531 | N16: 46.60578387
B17: CUSCO | C17: 29907 | D17: 481 | E17: 1.608319123 | F17: 10404 | G17: 34.78784231 | H17: 3751 | I17: 12.5422142 | J17: 26970 | K17: 1901 | L17: 7.048572488 | M17: 13249 | N17: 49.12495365
B18: CUTERVO | C18: 2963 | D18: 43 | E18: 1.45123186 | F18: 1080 | G18: 36.44954438 | H18: 287 | I18: 9.686128923 | J18: 2609 | K18: 230 | L18: 8.815638176 | M18: 1116 | N18: 42.77500958
B19: HUANCAVELICA | C19: 9191 | D19: 128 | E19: 1.392666739 | F19: 2832 | G19: 30.8127516 | H19: 767 | I19: 8.345120226 | J19: 8171 | K19: 690 | L19: 8.444498837 | M19: 3245 | N19: 39.71362134
B20: HUÁNUCO | C20: (SD) | D20: (SD) | E20: (SD) | F20: (SD) | G20: (SD) | H20: (SD) | I20: (SD) | J20: (SD) | K20: (SD) | L20: (SD) | M20: (SD) | N20: (SD)
B21: ICA | C21: 12076 | D21: 285 | E21: 2.360052998 | F21: 4136 | G21: 34.24975157 | H21: 2771 | I21: 22.94633985 | J21: 11124 | K21: 883 | L21: 7.937792161 | M21: 6550 | N21: 58.88169723
B22: JAÉN | C22: 8601 | D22: 173 | E22: 2.011394024 | F22: 2891 | G22: 33.61237065 | H22: 904 | I22: 10.51040577 | J22: 7635 | K22: 876 | L22: 11.47347741 | M22: 3182 | N22: 41.67648985
B23: JUNÍN | C23: 24419 | D23: 519 | E23: 2.12539416 | F23: 7521 | G23: 30.79978705 | H23: 2777 | I23: 11.37229207 | J23: 21981 | K23: 2607 | L23: 11.86024294 | M23: 9190 | N23: 41.8088349
B24: LA LIBERTAD | C24: 31228 | D24: 468 | E24: 1.498655053 | F24: 11214 | G24: 35.9100807 | H24: 5319 | I24: 17.03279108 | J24: 28053 | K24: 2239 | L24: 7.981321071 | M24: 14388 | N24: 51.28863223
B25: LAMBAYEQUE | C25: 7780 | D25: 136 | E25: 1.748071979 | F25: 2788 | G25: 35.83547558 | H25: 1283 | I25: 16.49100257 | J25: 6829 | K25: 547 | L25: 8.009957534 | M25: 3260 | N25: 47.73758969
B26: LIMA | C26: 16146 | D26: 234 | E26: 1.449275362 | F26: 6132 | G26: 37.97844667 | H26: 3669 | I26: 22.72389446 | J26: 14521 | K26: 1033 | L26: 7.113835135 | M26: 8445 | N26: 58.15715171
B27: LIMA CENTRO | C27: (SD) | D27: (SD) | E27: (SD) | F27: (SD) | G27: (SD) | H27: (SD) | I27: (SD) | J27: (SD) | K27: (SD) | L27: (SD) | M27: (SD) | N27: (SD)
B28: LIMA ESTE | C28: (SD) | D28: (SD) | E28: (SD) | F28: (SD) | G28: (SD) | H28: (SD) | I28: (SD) | J28: (SD) | K28: (SD) | L28: (SD) | M28: (SD) | N28: (SD)
B29: LIMA NORTE | C29: (SD) | D29: (SD) | E29: (SD) | F29: (SD) | G29: (SD) | H29: (SD) | I29: (SD) | J29: (SD) | K29: (SD) | L29: (SD) | M29: (SD) | N29: (SD)
B30: LIMA SUR | C30: 16531 | D30: 290 | E30: 1.754279838 | F30: 5982 | G30: 36.18655859 | H30: 3486 | I30: 21.0876535 | J30: 14896 | K30: 971 | L30: 6.518528464 | M30: 8924 | N30: 59.90870032
B31: LORETO | C31: 23815 | D31: 738 | E31: 3.098887256 | F31: 7378 | G31: 30.98047449 | H31: 3529 | I31: 14.81839177 | J31: 21510 | K31: 3761 | L31: 17.48489075 | M31: 8177 | N31: 38.0148768
B32: MADRE DE DIOS | C32: 6916 | D32: 118 | E32: 1.706188548 | F32: 2525 | G32: 36.50954309 | H32: 1631 | I32: 23.58299595 | J32: 6215 | K32: 421 | L32: 6.773934031 | M32: 3680 | N32: 59.21158488
B33: MOQUEGUA | C33: (SD) | D33: (SD) | E33: (SD) | F33: (SD) | G33: (SD) | H33: (SD) | I33: (SD) | J33: (SD) | K33: (SD) | L33: (SD) | M33: (SD) | N33: (SD)
B34: PASCO | C34: 5274 | D34: 97 | E34: 1.839211225 | F34: 1731 | G34: 32.82138794 | H34: 593 | I34: 11.24383769 | J34: 4713 | K34: 493 | L34: 10.4604286 | M34: 2008 | N34: 42.60555909
B35: PIURA | C35: 7950 | D35: 169 | E35: 2.125786164 | F35: 2795 | G35: 35.1572327 | H35: 1133 | I35: 14.25157233 | J35: 7123 | K35: 730 | L35: 10.2484908 | M35: 3173 | N35: 44.54583743
B36: PUNO | C36: 20702 | D36: 232 | E36: 1.12066467 | F36: 7501 | G36: 36.23321418 | H36: 2899 | I36: 14.00347792 | J36: 19222 | K36: 1190 | L36: 6.190823015 | M36: 10107 | N36: 52.58037665
B37: SAN MARTÍN | C37: 15879 | D37: 445 | E37: 2.802443479 | F37: 5508 | G37: 34.68732288 | H37: 2400 | I37: 15.11430191 | J37: 14321 | K37: 1814 | L37: 12.66671322 | M37: 6542 | N37: 45.68116752
B38: SULLANA | C38: 16590 | D38: 452 | E38: 2.724532851 | F38: 5829 | G38: 35.13562387 | H38: 3531 | I38: 21.28390597 | J38: 14941 | K38: 1450 | L38: 9.704839034 | M38: 7909 | N38: 52.93487718
B39: TACNA | C39: 4294 | D39: 35 | E39: 0.8150908244 | F39: 1661 | G39: 38.6818817 | H39: 1164 | I39: 27.10759199 | J39: 4097 | K39: 146 | L39: 3.56358311 | M39: 2793 | N39: 68.17183305
B40: TUMBES | C40: 5230 | D40: 215 | E40: 4.110898662 | F40: 1767 | G40: 33.78585086 | H40: 1252 | I40: 23.93881453 | J40: 4710 | K40: 448 | L40: 9.511677282 | M40: 2806 | N40: 59.57537155
B41: UCAYALI | C41: (SD) | D41: (SD) | E41: (SD) | F41: (SD) | G41: (SD) | H41: (SD) | I41: (SD) | J41: (SD) | K41: (SD) | L41: (SD) | M41: (SD) | N41: (SD)
B42: PERÚ | C42: =SUM(C8:C41) -> 342817 | D42: =SUM(D8:D41) -> 6515 | E42: =D42/C42*100 -> 1.900430842 | F42: =SUM(F8:F41) -> 117970 | G42: =F42/C42*100 -> 34.41194573 | H42: =SUM(H8:H41) -> 52173 | I42: =H42/C42*100 -> 15.21890688 | J42: =SUM(J8:J41) -> 308955 | K42: =SUM(K8:K41) -> 28890 | L42: =K42/J42*100 -> 9.350876341 | M42: =SUM(M8:M41) -> 149588 | N42: =M42/J42*100 -> 48.41740707
B43: =CONCATENATE("Fuente: Sistema de Información del Estado Nutricional en gestantes que acceden al establecimiento de salud, ",RIGHT(INICIO!C$8,4),".") -> Fuente: Sistema de Información del Estado Nutricional en gestantes que acceden al establecimiento de salud, 2022.
B44: Instituto Nacional de Salud / Centro Nacional de Alimentación y Nutrición / Dirección Ejecutiva de Vigilancia Alimentaria y Nutricional.
B45: 1 Indicadores Nutricionales según Índice de Masa Corporal Pre gestacional (IMC-PG) del Instituto de Medicina de EEUU (IOM).
B46: 2 Indicadores Nutricionales según Centro Latinoamericano de Perinatologia (CLAP).
B47: (SD) Diresas sin registro de gestantes

Sheet IMC_PG-CLAP x DISTRITO
B2: CUADRO N°03 PERÚ: ESTADO NUTRICIONAL EN GESTANTES QUE ACCEDIERON A LOS ESTABLECIMIENTOS DE SALUD SEGÚN INDICE DE MASA CORPORAL PRE-GESTACIONAL Y CENTRO LATINOAMERICANO DE PERINATOLOGIA, SEGÚN DEPARTAMENTO, PROVINCIA Y DISTRITO
B3: =INICIO!C$8 -> PERIODO: ENERO A DICIEMBRE - 2022
B5: DEPARTAMENTO | C5: PROVINCIA | D5: DISTRITO | E5: UBIGEO | F5: INDICADORES IMC PRE-GESTACIONAL1 | M5: INDICADORES CLAP2
F6: N° DE EVALUADAS | G6: BAJO PESO | I6: SOBREPESO | K6: OBESIDAD | M6: N° DE EVALUADAS | N6: DÉFICIT DE PESO | P6: SOBREPESO
G7: N° DE CASOS | H7: % | I7: N° DE CASOS | J7: % | K7: N° DE CASOS | L7: % | N7: N° DE CASOS | O7: % | P7: N° DE CASOS | Q7: %
B8: AMAZONAS | C8: CHACHAPOYAS | D8: CHACHAPOYAS | E8: 010101 | F8: 508 | G8: 15 | H8: 2.952755906 | I8: 163 | J8: 32.08661417 | K8: 64 | L8: 12.5984252 | M8: 478 | N8: 45 | O8: 9.414225941 | P8: 225 | Q8: 47.07112971
B9: AMAZONAS | C9: CHACHAPOYAS | D9: ASUNCION | E9: 010102 | F9: * | G9: * | H9: * | I9: * | J9: * | K9: * | L9: * | M9: * | N9: * | O9: * | P9: * | Q9: *
B10: AMAZONAS | C10: CHACHAPOYAS | D10: BALSAS | E10: 010103 | F10: 35 | G10: 1 | H10: 2.857142857 | I10: 8 | J10: 22.85714286 | K10: 9 | L10: 25.71428571 | M10: 31 | N10: 2 | O10: 6.451612903 | P10: 15 | Q10: 48.38709677
B11: AMAZONAS | C11: CHACHAPOYAS | D11: CHETO | E11: 010104 | F11: 6 | G11: 0 | H11: 0 | I11: 2 | J11: 33.33333333 | K11: 0 | L11: 0 | M11: 6 | N11: 0 | O11: 0 | P11: 3 | Q11: 50
B12: AMAZONAS | C12: CHACHAPOYAS | D12: CHILIQUIN | E12: 010105 | F12: 17 | G12: 1 | H12: 5.882352941 | I12: 12 | J12: 70.58823529 | K12: 2 | L12: 11.76470588 | M12: 13 | N12: 1 | O12: 7.692307692 | P12: 7 | Q12: 53.84615385
B13: AMAZONAS | C13: CHACHAPOYAS | D13: CHUQUIBAMBA | E13: 010106 | F13: 34 | G13: 0 | H13: 0 | I13: 10 | J13: 29.41176471 | K13: 5 | L13: 14.70588235 | M13: 34 | N13: 1 | O13: 2.941176471 | P13: 16 | Q13: 47.05882353
B14: AMAZONAS | C14: CHACHAPOYAS | D14: GRANADA | E14: 010107 | F14: * | G14: * | H14: * | I14: * | J14: * | K14: * | L14: * | M14: * | N14: * | O14: * | P14: * | Q14: *
B15: AMAZONAS | C15: CHACHAPOYAS | D15: HUANCAS | E15: 010108 | F15: 8 | G15: 0 | H15: 0 | I15: 3 | J15: 37.5 | K15: 2 | L15: 25 | M15: 8 | N15: 0 | O15: 0 | P15: 5 | Q15: 62.5
B16: AMAZONAS | C16: CHACHAPOYAS | D16: LA JALCA | E16: 010109 | F16: 64 | G16: 1 | H16: 1.5625 | I16: 18 | J16: 28.125 | K16: 5 | L16: 7.8125 | M16: 63 | N16: 3 | O16: 4.761904762 | P16: 21 | Q16: 33.33333333
B17: AMAZONAS | C17: CHACHAPOYAS | D17: LEIMEBAMBA | E17: 010110 | F17: 37 | G17: 0 | H17: 0 | I17: 12 | J17: 32.43243243 | K17: 5 | L17: 13.51351351 | M17: 34 | N17: 2 | O17: 5.882352941 | P17: 18 | Q17: 52.94117647
B18: AMAZONAS | C18: CHACHAPOYAS | D18: LEVANTO | E18: 010111 | F18: 12 | G18: 0 | H18: 0 | I18: 6 | J18: 50 | K18: 3 | L18: 25 | M18: 12 | N18: 0 | O18: 0 | P18: 8 | Q18: 66.66666667
B19: AMAZONAS | C19: CHACHAPOYAS | D19: MAGDALENA | E19: 010112 | F19: 12 | G19: 0 | H19: 0 | I19: 6 | J19: 50 | K19: 1 | L19: 8.333333333 | M19: 11 | N19: 1 | O19: 9.090909091 | P19: 6 | Q19: 54.54545455
B20: AMAZONAS | C20: CHACHAPOYAS | D20: MARISCAL CASTILLA | E20: 010113 | F20: 5 | G20: 0 | H20: 0 | I20: 1 | J20: 20 | K20: 0 | L20: 0 | M20: 5 | N20: 1 | O20: 20 | P20: 1 | Q20: 20
B21: AMAZONAS | C21: CHACHAPOYAS | D21: MOLINOPAMPA | E21: 010114 | F21: 29 | G21: 0 | H21: 0 | I21: 15 | J21: 51.72413793 | K21: 5 | L21: 17.24137931 | M21: 29 | N21: 2 | O21: 6.896551724 | P21: 19 | Q21: 65.51724138
B22: AMAZONAS | C22: CHACHAPOYAS | D22: MONTEVIDEO | E22: 010115 | F22: * | G22: * | H22: * | I22: * | J22: * | K22: * | L22: * | M22: * | N22: * | O22: * | P22: * | Q22: *
B23: AMAZONAS | C23: CHACHAPOYAS | D23: OLLEROS | E23: 010116 | F23: 7 | G23: 0 | H23: 0 | I23: 3 | J23: 42.85714286 | K23: 2 | L23: 28.57142857 | M23: 6 | N23: 0 | O23: 0 | P23: 4 | Q23: 66.66666667
B24: AMAZONAS | C24: CHACHAPOYAS | D24: QUINJALCA | E24: 010117 | F24: 9 | G24: 0 | H24: 0 | I24: 1 | J24: 11.11111111 | K24: 0 | L24: 0 | M24: 8 | N24: 0 | O24: 0 | P24: 4 | Q24: 50
B25: AMAZONAS | C25: CHACHAPOYAS | D25: SAN FRANCISCO DE DAGUAS | E25: 010118 | F25: * | G25: * | H25: * | I25: * | J25: * | K25: * | L25: * | M25: * | N25: * | O25: * | P25: * | Q25: *
B26: AMAZONAS | C26: CHACHAPOYAS | D26: SAN ISIDRO DE MAINO | E26: 010119 | F26: 6 | G26: 0 | H26: 0 | I26: 4 | J26: 66.66666667 | K26: 0 | L26: 0 | M26: 4 | N26: 0 | O26: 0 | P26: 2 | Q26: 50
B27: AMAZONAS | C27: CHACHAPOYAS | D27: SOLOCO | E27: 010120 | F27: 11 | G27: 0 | H27: 0 | I27: 0 | J27: 0 | K27: 1 | L27: 9.090909091 | M27: 11 | N27: 1 | O27: 9.090909091 | P27: 3 | Q27: 27.27272727
B28: AMAZONAS | C28: CHACHAPOYAS | D28: SONCHE | E28: 010121 | F28: 7 | G28: 0 | H28: 0 | I28: 2 | J28: 28.57142857 | K28: 0 | L28: 0 | M28: 4 | N28: 0 | O28: 0 | P28: 1 | Q28: 25
B29: AMAZONAS | C29: BAGUA | D29: BAGUA | E29: 010201 | F29: 629 | G29: 19 | H29: 3.020667727 | I29: 206 | J29: 32.75039746 | K29: 110 | L29: 17.48807631 | M29: 589 | N29: 117 | O29: 19.86417657 | P29: 225 | Q29: 38.20033956
B30: AMAZONAS | C30: BAGUA | D30: ARAMANGO | E30: 010202 | F30: 309 | G30: 6 | H30: 1.941747573 | I30: 96 | J30: 31.06796117 | K30: 38 | L30: 12.29773463 | M30: 258 | N30: 29 | O30: 11.24031008 | P30: 106 | Q30: 41.08527132
B31: AMAZONAS | C31: BAGUA | D31: COPALLIN | E31: 010203 | F31: 132 | G31: 0 | H31: 0 | I31: 53 | J31: 40.15151515 | K31: 15 | L31: 11.36363636 | M31: 116 | N31: 20 | O31: 17.24137931 | P31: 41 | Q31: 35.34482759
B32: AMAZONAS | C32: BAGUA | D32: EL PARCO | E32: 010204 | F32: 30 | G32: 0 | H32: 0 | I32: 12 | J32: 40 | K32: 5 | L32: 16.66666667 | M32: 26 | N32: 3 | O32: 11.53846154 | P32: 14 | Q32: 53.84615385
B33: AMAZONAS | C33: BAGUA | D33: IMAZA | E33: 010205 | F33: 2493 | G33: 73 | H33: 2.928198957 | I33: 430 | J33: 17.24829523 | K33: 70 | L33: 2.807862014 | M33: 2166 | N33: 516 | O33: 23.82271468 | P33: 317 | Q33: 14.63527239
B34: AMAZONAS | C34: BAGUA | D34: LA PECA | E34: 010206 | F34: 151 | G34: 2 | H34: 1.324503311 | I34: 59 | J34: 39.07284768 | K34: 26 | L34: 17.21854305 | M34: 127 | N34: 8 | O34: 6.299212598 | P34: 71 | Q34: 55.90551181
B35: AMAZONAS | C35: BONGARA | D35: JUMBILLA | E35: 010301 | F35: 21 | G35: 0 | H35: 0 | I35: 11 | J35: 52.38095238 | K35: 1 | L35: 4.761904762 | M35: 19 | N35: 1 | O35: 5.263157895 | P35: 9 | Q35: 47.36842105
B36: AMAZONAS | C36: BONGARA | D36: CHISQUILLA | E36: 010302 | F36: 8 | G36: 0 | H36: 0 | I36: 3 | J36: 37.5 | K36: 1 | L36: 12.5 | M36: 6 | N36: 0 | O36: 0 | P36: 4 | Q36: 66.66666667
B37: AMAZONAS | C37: BONGARA | D37: CHURUJA | E37: 010303 | F37: * | G37: * | H37: * | I37: * | J37: * | K37: * | L37: * | M37: * | N37: * | O37: * | P37: * | Q37: *
B38: AMAZONAS | C38: BONGARA | D38: COROSHA | E38: 010304 | F38: 23 | G38: 0 | H38: 0 | I38: 11 | J38: 47.82608696 | K38: 3 | L38: 13.04347826 | M38: 22 | N38: 1 | O38: 4.545454545 | P38: 12 | Q38: 54.54545455
B39: AMAZONAS | C39: BONGARA | D39: CUISPES | E39: 010305 | F39: * | G39: * | H39: * | I39: * | J39: * | K39: * | L39: * | M39: * | N39: * | O39: * | P39: * | Q39: *
B40: AMAZONAS | C40: BONGARA | D40: FLORIDA | E40: 010306 | F40: 113 | G40: 2 | H40: 1.769911504 | I40: 49 | J40: 43.36283186 | K40: 12 | L40: 10.61946903 | M40: 97 | N40: 7 | O40: 7.216494845 | P40: 47 | Q40: 48.45360825
B41: AMAZONAS | C41: BONGARA | D41: JAZAN | E41: 010307 | F41: 96 | G41: 1 | H41: 1.041666667 | I41: 35 | J41: 36.45833333 | K41: 11 | L41: 11.45833333 | M41: 92 | N41: 4 | O41: 4.347826087 | P41: 47 | Q41: 51.08695652
B42: AMAZONAS | C42: BONGARA | D42: RECTA | E42: 010308 | F42: (SD) | G42: (SD) | H42: (SD) | I42: (SD) | J42: (SD) | K42: (SD) | L42: (SD) | M42: (SD) | N42: (SD) | O42: (SD) | P42: (SD) | Q42: (SD)
B43: AMAZONAS | C43: BONGARA | D43: SAN CARLOS | E43: 010309 | F43: * | G43: * | H43: * | I43: * | J43: * | K43: * | L43: * | M43: * | N43: * | O43: * | P43: * | Q43: *
B44: AMAZONAS | C44: BONGARA | D44: SHIPASBAMBA | E44: 010310 | F44: 23 | G44: 0 | H44: 0 | I44: 13 | J44: 56.52173913 | K44: 3 | L44: 13.04347826 | M44: 13 | N44: 0 | O44: 0 | P44: 10 | Q44: 76.92307692
B45: AMAZONAS | C45: BONGARA | D45: VALERA | E45: 010311 | F45: 18 | G45: 0 | H45: 0 | I45: 6 | J45: 33.33333333 | K45: 5 | L45: 27.77777778 | M45: 15 | N45: 1 | O45: 6.666666667 | P45: 8 | Q45: 53.33333333
B46: AMAZONAS | C46: BONGARA | D46: YAMBRASBAMBA | E46: 010312 | F46: 108 | G46: 3 | H46: 2.777777778 | I46: 44 | J46: 40.74074074 | K46: 6 | L46: 5.555555556 | M46: 98 | N46: 4 | O46: 4.081632653 | P46: 45 | Q46: 45.91836735
B47: AMAZONAS | C47: CONDORCANQUI | D47: NIEVA | E47: 010401 | F47: 2584 | G47: 50 | H47: 1.93498452 | I47: 560 | J47: 21.67182663 | K47: 96 | L47: 3.715170279 | M47: 2203 | N47: 460 | O47: 20.88061734 | P47: 398 | Q47: 18.06627326
B48: AMAZONAS | C48: CONDORCANQUI | D48: EL CENEPA | E48: 010402 | F48: 992 | G48: 31 | H48: 3.125 | I48: 179 | J48: 18.04435484 | K48: 17 | L48: 1.713709677 | M48: 875 | N48: 195 | O48: 22.28571429 | P48: 125 | Q48: 14.28571429
B49: AMAZONAS | C49: CONDORCANQUI | D49: RIO SANTIAGO | E49: 010403 | F49: 1317 | G49: 55 | H49: 4.176157935 | I49: 257 | J49: 19.51404708 | K49: 44 | L49: 3.340926348 | M49: 1144 | N49: 306 | O49: 26.74825175 | P49: 177 | Q49: 15.47202797
B50: AMAZONAS | C50: LUYA | D50: LAMUD | E50: 010501 | F50: 52 | G50: 0 | H50: 0 | I50: 16 | J50: 30.76923077 | K50: 4 | L50: 7.692307692 | M50: 43 | N50: 3 | O50: 6.976744186 | P50: 21 | Q50: 48.8372093
B51: AMAZONAS | C51: LUYA | D51: CAMPORREDONDO | E51: 010502 | F51: 160 | G51: 3 | H51: 1.875 | I51: 56 | J51: 35 | K51: 19 | L51: 11.875 | M51: 133 | N51: 9 | O51: 6.766917293 | P51: 61 | Q51: 45.86466165
B52: AMAZONAS | C52: LUYA | D52: COCABAMBA | E52: 010503 | F52: 62 | G52: 0 | H52: 0 | I52: 25 | J52: 40.32258065 | K52: 11 | L52: 17.74193548 | M52: 58 | N52: 2 | O52: 3.448275862 | P52: 30 | Q52: 51.72413793
B53: AMAZONAS | C53: LUYA | D53: COLCAMAR | E53: 010504 | F53: 38 | G53: 0 | H53: 0 | I53: 10 | J53: 26.31578947 | K53: 5 | L53: 13.15789474 | M53: 37 | N53: 3 | O53: 8.108108108 | P53: 21 | Q53: 56.75675676
B54: AMAZONAS | C54: LUYA | D54: CONILA | E54: 010505 | F54: 37 | G54: 1 | H54: 2.702702703 | I54: 19 | J54: 51.35135135 | K54: 3 | L54: 8.108108108 | M54: 33 | N54: 4 | O54: 12.12121212 | P54: 20 | Q54: 60.60606061
B55: AMAZONAS | C55: LUYA | D55: INGUILPATA | E55: 010506 | F55: 6 | G55: 0 | H55: 0 | I55: 1 | J55: 16.66666667 | K55: 0 | L55: 0 | M55: 4 | N55: 0 | O55: 0 | P55: 1 | Q55: 25
B56: AMAZONAS | C56: LUYA | D56: LONGUITA | E56: 010507 | F56: 7 | G56: 0 | H56: 0 | I56: 0 | J56: 0 | K56: 3 | L56: 42.85714286 | M56: 7 | N56: 0 | O56: 0 | P56: 4 | Q56: 57.14285714
B57: AMAZONAS | C57: LUYA | D57: LONYA CHICO | E57: 010508 | F57: 18 | G57: 0 | H57: 0 | I57: 6 | J57: 33.33333333 | K57: 2 | L57: 11.11111111 | M57: 15 | N57: 0 | O57: 0 | P57: 7 | Q57: 46.66666667
B58: AMAZONAS | C58: LUYA | D58: LUYA | E58: 010509 | F58: 90 | G58: 2 | H58: 2.222222222 | I58: 40 | J58: 44.44444444 | K58: 6 | L58: 6.666666667 | M58: 84 | N58: 8 | O58: 9.523809524 | P58: 42 | Q58: 50
B59: AMAZONAS | C59: LUYA | D59: LUYA VIEJO | E59: 010510 | F59: 12 | G59: 0 | H59: 0 | I59: 5 | J59: 41.66666667 | K59: 0 | L59: 0 | M59: 12 | N59: 0 | O59: 0 | P59: 7 | Q59: 58.33333333
B60: AMAZONAS | C60: LUYA | D60: MARIA | E60: 010511 | F60: 16 | G60: 0 | H60: 0 | I60: 7 | J60: 43.75 | K60: 0 | L60: 0 | M60: 16 | N60: 1 | O60: 6.25 | P60: 11 | Q60: 68.75
B61: AMAZONAS | C61: LUYA | D61: OCALLI | E61: 010512 | F61: 100 | G61: 5 | H61: 5 | I61: 31 | J61: 31 | K61: 14 | L61: 14 | M61: 90 | N61: 16 | O61: 17.77777778 | P61: 35 | Q61: 38.88888889
B62: AMAZONAS | C62: LUYA | D62: OCUMAL | E62: 010513 | F62: 94 | G62: 0 | H62: 0 | I62: 37 | J62: 39.36170213 | K62: 6 | L62: 6.382978723 | M62: 82 | N62: 5 | O62: 6.097560976 | P62: 41 | Q62: 50
B63: AMAZONAS | C63: LUYA | D63: PISUQUIA | E63: 010514 | F63: 64 | G63: 1 | H63: 1.5625 | I63: 24 | J63: 37.5 | K63: 8 | L63: 12.5 | M63: 60 | N63: 2 | O63: 3.333333333 | P63: 23 | Q63: 38.33333333
B64: AMAZONAS | C64: LUYA | D64: PROVIDENCIA | E64: 010515 | F64: 49 | G64: 1 | H64: 2.040816327 | I64: 20 | J64: 40.81632653 | K64: 9 | L64: 18.36734694 | M64: 44 | N64: 7 | O64: 15.90909091 | P64: 20 | Q64: 45.45454545
B65: AMAZONAS | C65: LUYA | D65: SAN CRISTOBAL | E65: 010516 | F65: 10 | G65: 0 | H65: 0 | I65: 2 | J65: 20 | K65: 1 | L65: 10 | M65: 9 | N65: 0 | O65: 0 | P65: 2 | Q65: 22.22222222
B66: AMAZONAS | C66: LUYA | D66: SAN FRANCISCO DE YESO | E66: 010517 | F66: 10 | G66: 1 | H66: 10 | I66: 4 | J66: 40 | K66: 0 | L66: 0 | M66: 9 | N66: 1 | O66: 11.11111111 | P66: 3 | Q66: 33.33333333
B67: AMAZONAS | C67: LUYA | D67: SAN JERONIMO | E67: 010518 | F67: * | G67: * | H67: * | I67: * | J67: * | K67: * | L67: * | M67: * | N67: * | O67: * | P67: * | Q67: *
B68: AMAZONAS | C68: LUYA | D68: SAN JUAN DE LOPECANCHA | E68: 010519 | F68: * | G68: * | H68: * | I68: * | J68: * | K68: * | L68: * | M68: * | N68: * | O68: * | P68: * | Q68: *
B69: AMAZONAS | C69: LUYA | D69: SANTA CATALINA | E69: 010520 | F69: 41 | G69: 0 | H69: 0 | I69: 21 | J69: 51.2195122 | K69: 2 | L69: 4.87804878 | M69: 34 | N69: 2 | O69: 5.882352941 | P69: 17 | Q69: 50
B70: AMAZONAS | C70: LUYA | D70: SANTO TOMAS | E70: 010521 | F70: 67 | G70: 0 | H70: 0 | I70: 21 | J70: 31.34328358 | K70: 10 | L70: 14.92537313 | M70: 63 | N70: 4 | O70: 6.349206349 | P70: 31 | Q70: 49.20634921
B71: AMAZONAS | C71: LUYA | D71: TINGO | E71: 010522 | F71: 12 | G71: 0 | H71: 0 | I71: 6 | J71: 50 | K71: 3 | L71: 25 | M71: 12 | N71: 2 | O71: 16.66666667 | P71: 7 | Q71: 58.33333333
B72: AMAZONAS | C72: LUYA | D72: TRITA | E72: 010523 | F72: 42 | G72: 0 | H72: 0 | I72: 11 | J72: 26.19047619 | K72: 11 | L72: 26.19047619 | M72: 36 | N72: 2 | O72: 5.555555556 | P72: 18 | Q72: 50
B73: AMAZONAS | C73: RODRIGUEZ DE MENDOZA | D73: SAN NICOLAS | E73: 010601 | F73: 113 | G73: 2 | H73: 1.769911504 | I73: 42 | J73: 37.16814159 | K73: 11 | L73: 9.734513274 | M73: 101 | N73: 12 | O73: 11.88118812 | P73: 44 | Q73: 43.56435644
B74: AMAZONAS | C74: RODRIGUEZ DE MENDOZA | D74: CHIRIMOTO | E74: 010602 | F74: 27 | G74: 1 | H74: 3.703703704 | I74: 6 | J74: 22.22222222 | K74: 0 | L74: 0 | M74: 25 | N74: 4 | O74: 16 | P74: 10 | Q74: 40
B75: AMAZONAS | C75: RODRIGUEZ DE MENDOZA | D75: COCHAMAL | E75: 010603 | F75: (SD) | G75: (SD) | H75: (SD) | I75: (SD) | J75: (SD) | K75: (SD) | L75: (SD) | M75: (SD) | N75: (SD) | O75: (SD) | P75: (SD) | Q75: (SD)
B76: AMAZONAS | C76: RODRIGUEZ DE MENDOZA | D76: HUAMBO | E76: 010604 | F76: 20 | G76: 1 | H76: 5 | I76: 9 | J76: 45 | K76: 1 | L76: 5 | M76: 15 | N76: 0 | O76: 0 | P76: 6 | Q76: 40
B77: AMAZONAS | C77: RODRIGUEZ DE MENDOZA | D77: LIMABAMBA | E77: 010605 | F77: (SD) | G77: (SD) | H77: (SD) | I77: (SD) | J77: (SD) | K77: (SD) | L77: (SD) | M77: (SD) | N77: (SD) | O77: (SD) | P77: (SD) | Q77: (SD)
B78: AMAZONAS | C78: RODRIGUEZ DE MENDOZA | D78: LONGAR | E78: 010606 | F78: (SD) | G78: (SD) | H78: (SD) | I78: (SD) | J78: (SD) | K78: (SD) | L78: (SD) | M78: (SD) | N78: (SD) | O78: (SD) | P78: (SD) | Q78: (SD)
B79: AMAZONAS | C79: RODRIGUEZ DE MENDOZA | D79: MARISCAL BENAVIDES | E79: 010607 | F79: (SD) | G79: (SD) | H79: (SD) | I79: (SD) | J79: (SD) | K79: (SD) | L79: (SD) | M79: (SD) | N79: (SD) | O79: (SD) | P79: (SD) | Q79: (SD)
B80: AMAZONAS | C80: RODRIGUEZ DE MENDOZA | D80: MILPUC | E80: 010608 | F80: * | G80: * | H80: * | I80: * | J80: * | K80: * | L80: * | M80: * | N80: * | O80: * | P80: * | Q80: *
B81: AMAZONAS | C81: RODRIGUEZ DE MENDOZA | D81: OMIA | E81: 010609 | F81: 80 | G81: 4 | H81: 5 | I81: 28 | J81: 35 | K81: 3 | L81: 3.75 | M81: 68 | N81: 10 | O81: 14.70588235 | P81: 21 | Q81: 30.88235294
B82: AMAZONAS | C82: RODRIGUEZ DE MENDOZA | D82: SANTA ROSA | E82: 010610 | F82: (SD) | G82: (SD) | H82: (SD) | I82: (SD) | J82: (SD) | K82: (SD) | L82: (SD) | M82: (SD) | N82: (SD) | O82: (SD) | P82: (SD) | Q82: (SD)
B83: AMAZONAS | C83: RODRIGUEZ DE MENDOZA | D83: TOTORA | E83: 010611 | F83: (SD) | G83: (SD) | H83: (SD) | I83: (SD) | J83: (SD) | K83: (SD) | L83: (SD) | M83: (SD) | N83: (SD) | O83: (SD) | P83: (SD) | Q83: (SD)
B84: AMAZONAS | C84: RODRIGUEZ DE MENDOZA | D84: VISTA ALEGRE | E84: 010612 | F84: 40 | G84: 0 | H84: 0 | I84: 11 | J84: 27.5 | K84: 7 | L84: 17.5 | M84: 37 | N84: 3 | O84: 8.108108108 | P84: 14 | Q84: 37.83783784
B85: AMAZONAS | C85: UTCUBAMBA | D85: BAGUA GRANDE | E85: 010701 | F85: 1196 | G85: 31 | H85: 2.591973244 | I85: 414 | J85: 34.61538462 | K85: 158 | L85: 13.21070234 | M85: 1070 | N85: 120 | O85: 11.21495327 | P85: 480 | Q85: 44.85981308
B86: AMAZONAS | C86: UTCUBAMBA | D86: CAJARURO | E86: 010702 | F86: 682 | G86: 9 | H86: 1.319648094 | I86: 261 | J86: 38.26979472 | K86: 104 | L86: 15.24926686 | M86: 596 | N86: 56 | O86: 9.395973154 | P86: 270 | Q86: 45.30201342
B87: AMAZONAS | C87: UTCUBAMBA | D87: CUMBA | E87: 010703 | F87: 211 | G87: 7 | H87: 3.317535545 | I87: 78 | J87: 36.96682464 | K87: 19 | L87: 9.004739336 | M87: 182 | N87: 23 | O87: 12.63736264 | P87: 72 | Q87: 39.56043956
B88: AMAZONAS | C88: UTCUBAMBA | D88: EL MILAGRO | E88: 010704 | F88: 221 | G88: 8 | H88: 3.619909502 | I88: 67 | J88: 30.31674208 | K88: 22 | L88: 9.954751131 | M88: 196 | N88: 31 | O88: 15.81632653 | P88: 88 | Q88: 44.89795918
B89: AMAZONAS | C89: UTCUBAMBA | D89: JAMALCA | E89: 010705 | F89: 127 | G89: 0 | H89: 0 | I89: 51 | J89: 40.15748031 | K89: 23 | L89: 18.11023622 | M89: 112 | N89: 3 | O89: 2.678571429 | P89: 59 | Q89: 52.67857143
B90: AMAZONAS | C90: UTCUBAMBA | D90: LONYA GRANDE | E90: 010706 | F90: 244 | G90: 5 | H90: 2.049180328 | I90: 90 | J90: 36.8852459 | K90: 16 | L90: 6.557377049 | M90: 216 | N90: 24 | O90: 11.11111111 | P90: 84 | Q90: 38.88888889
B91: AMAZONAS | C91: UTCUBAMBA | D91: YAMON | E91: 010707 | F91: 85 | G91: 2 | H91: 2.352941176 | I91: 33 | J91: 38.82352941 | K91: 15 | L91: 17.64705882 | M91: 73 | N91: 7 | O91: 9.589041096 | P91: 36 | Q91: 49.31506849
B92: ANCASH | C92: HUARAZ | D92: HUARAZ | E92: 020101 | F92: 1520 | G92: 15 | H92: 0.9868421053 | I92: 567 | J92: 37.30263158 | K92: 152 | L92: 10 | M92: 1335 | N92: 86 | O92: 6.441947566 | P92: 633 | Q92: 47.41573034
B93: ANCASH | C93: HUARAZ | D93: COCHABAMBA | E93: 020102 | F93: 35 | G93: 0 | H93: 0 | I93: 16 | J93: 45.71428571 | K93: 5 | L93: 14.28571429 | M93: 31 | N93: 0 | O93: 0 | P93: 17 | Q93: 54.83870968
B94: ANCASH | C94: HUARAZ | D94: COLCABAMBA | E94: 020103 | F94: * | G94: * | H94: * | I94: * | J94: * | K94: * | L94: * | M94: * | N94: * | O94: * | P94: * | Q94: *
B95: ANCASH | C95: HUARAZ | D95: HUANCHAY | E95: 020104 | F95: 22 | G95: 0 | H95: 0 | I95: 8 | J95: 36.36363636 | K95: 5 | L95: 22.72727273 | M95: 21 | N95: 4 | O95: 19.04761905 | P95: 10 | Q95: 47.61904762
B96: ANCASH | C96: HUARAZ | D96: INDEPENDENCIA | E96: 020105 | F96: 1610 | G96: 29 | H96: 1.801242236 | I96: 595 | J96: 36.95652174 | K96: 143 | L96: 8.881987578 | M96: 1420 | N96: 115 | O96: 8.098591549 | P96: 626 | Q96: 44.08450704
B97: ANCASH | C97: HUARAZ | D97: JANGAS | E97: 020106 | F97: 114 | G97: 2 | H97: 1.754385965 | I97: 43 | J97: 37.71929825 | K97: 14 | L97: 12.28070175 | M97: 104 | N97: 5 | O97: 4.807692308 | P97: 53 | Q97: 50.96153846
B98: ANCASH | C98: HUARAZ | D98: LA LIBERTAD | E98: 020107 | F98: 22 | G98: 0 | H98: 0 | I98: 6 | J98: 27.27272727 | K98: 2 | L98: 9.090909091 | M98: 18 | N98: 2 | O98: 11.11111111 | P98: 8 | Q98: 44.44444444
B99: ANCASH | C99: HUARAZ | D99: OLLEROS | E99: 020108 | F99: 37 | G99: 0 | H99: 0 | I99: 18 | J99: 48.64864865 | K99: 7 | L99: 18.91891892 | M99: 35 | N99: 0 | O99: 0 | P99: 20 | Q99: 57.14285714
B100: ANCASH | C100: HUARAZ | D100: PAMPAS GRANDE | E100: 020109 | F100: 19 | G100: 0 | H100: 0 | I100: 5 | J100: 26.31578947 | K100: 8 | L100: 42.10526316 | M100: 19 | N100: 1 | O100: 5.263157895 | P100: 13 | Q100: 68.42105263
B101: ANCASH | C101: HUARAZ | D101: PARIACOTO | E101: 020110 | F101: 157 | G101: 3 | H101: 1.910828025 | I101: 60 | J101: 38.21656051 | K101: 23 | L101: 14.64968153 | M101: 144 | N101: 9 | O101: 6.25 | P101: 69 | Q101: 47.91666667
B102: ANCASH | C102: HUARAZ | D102: PIRA | E102: 020111 | F102: 83 | G102: 0 | H102: 0 | I102: 31 | J102: 37.34939759 | K102: 14 | L102: 16.86746988 | M102: 70 | N102: 4 | O102: 5.714285714 | P102: 37 | Q102: 52.85714286
B103: ANCASH | C103: HUARAZ | D103: TARICA | E103: 020112 | F103: 181 | G103: 0 | H103: 0 | I103: 71 | J103: 39.22651934 | K103: 25 | L103: 13.8121547 | M103: 163 | N103: 5 | O103: 3.067484663 | P103: 82 | Q103: 50.30674847
B104: ANCASH | C104: AIJA | D104: AIJA | E104: 020201 | F104: 28 | G104: 0 | H104: 0 | I104: 6 | J104: 21.42857143 | K104: 6 | L104: 21.42857143 | M104: 24 | N104: 2 | O104: 8.333333333 | P104: 12 | Q104: 50
B105: ANCASH | C105: AIJA | D105: CORIS | E105: 020202 | F105: 31 | G105: 0 | H105: 0 | I105: 13 | J105: 41.93548387 | K105: 3 | L105: 9.677419355 | M105: 28 | N105: 4 | O105: 14.28571429 | P105: 11 | Q105: 39.28571429
B106: ANCASH | C106: AIJA | D106: HUACLLAN | E106: 020203 | F106: * | G106: * | H106: * | I106: * | J106: * | K106: * | L106: * | M106: * | N106: * | O106: * | P106: * | Q106: *
B107: ANCASH | C107: AIJA | D107: LA MERCED | E107: 020204 | F107: 36 | G107: 0 | H107: 0 | I107: 16 | J107: 44.44444444 | K107: 5 | L107: 13.88888889 | M107: 34 | N107: 2 | O107: 5.882352941 | P107: 16 | Q107: 47.05882353
B108: ANCASH | C108: AIJA | D108: SUCCHA | E108: 020205 | F108: 10 | G108: 0 | H108: 0 | I108: 3 | J108: 30 | K108: 4 | L108: 40 | M108: 8 | N108: 0 | O108: 0 | P108: 6 | Q108: 75
B109: ANCASH | C109: ANTONIO RAYMONDI | D109: LLAMELLIN | E109: 020301 | F109: 92 | G109: 3 | H109: 3.260869565 | I109: 26 | J109: 28.26086957 | K109: 12 | L109: 13.04347826 | M109: 78 | N109: 10 | O109: 12.82051282 | P109: 33 | Q109: 42.30769231
B110: ANCASH | C110: ANTONIO RAYMONDI | D110: ACZO | E110: 020302 | F110: 23 | G110: 2 | H110: 8.695652174 | I110: 4 | J110: 17.39130435 | K110: 3 | L110: 13.04347826 | M110: 21 | N110: 3 | O110: 14.28571429 | P110: 8 | Q110: 38.0952381
B111: ANCASH | C111: ANTONIO RAYMONDI | D111: CHACCHO | E111: 020303 | F111: 34 | G111: 0 | H111: 0 | I111: 15 | J111: 44.11764706 | K111: 2 | L111: 5.882352941 | M111: 29 | N111: 3 | O111: 10.34482759 | P111: 14 | Q111: 48.27586207
B112: ANCASH | C112: ANTONIO RAYMONDI | D112: CHINGAS | E112: 020304 | F112: 44 | G112: 0 | H112: 0 | I112: 22 | J112: 50 | K112: 6 | L112: 13.63636364 | M112: 41 | N112: 4 | O112: 9.756097561 | P112: 23 | Q112: 56.09756098
B113: ANCASH | C113: ANTONIO RAYMONDI | D113: MIRGAS | E113: 020305 | F113: 89 | G113: 1 | H113: 1.123595506 | I113: 32 | J113: 35.95505618 | K113: 8 | L113: 8.988764045 | M113: 80 | N113: 2 | O113: 2.5 | P113: 39 | Q113: 48.75
B114: ANCASH | C114: ANTONIO RAYMONDI | D114: SAN JUAN DE RONTOY | E114: 020306 | F114: 47 | G114: 1 | H114: 2.127659574 | I114: 21 | J114: 44.68085106 | K114: 3 | L114: 6.382978723 | M114: 42 | N114: 5 | O114: 11.9047619 | P114: 17 | Q114: 40.47619048
B115: ANCASH | C115: ASUNCION | D115: CHACAS | E115: 020401 | F115: 118 | G115: 2 | H115: 1.694915254 | I115: 40 | J115: 33.89830508 | K115: 15 | L115: 12.71186441 | M115: 101 | N115: 12 | O115: 11.88118812 | P115: 44 | Q115: 43.56435644
B116: ANCASH | C116: ASUNCION | D116: ACOCHACA | E116: 020402 | F116: 57 | G116: 1 | H116: 1.754385965 | I116: 23 | J116: 40.35087719 | K116: 9 | L116: 15.78947368 | M116: 52 | N116: 2 | O116: 3.846153846 | P116: 29 | Q116: 55.76923077
B117: ANCASH | C117: BOLOGNESI | D117: CHIQUIAN | E117: 020501 | F117: 67 | G117: 0 | H117: 0 | I117: 19 | J117: 28.35820896 | K117: 8 | L117: 11.94029851 | M117: 58 | N117: 6 | O117: 10.34482759 | P117: 24 | Q117: 41.37931034
B118: ANCASH | C118: BOLOGNESI | D118: ABELARDO PARDO LEZAMETA | E118: 020502 | F118: * | G118: * | H118: * | I118: * | J118: * | K118: * | L118: * | M118: * | N118: * | O118: * | P118: * | Q118: *
B119: ANCASH | C119: BOLOGNESI | D119: ANTONIO RAYMONDI | E119: 020503 | F119: 20 | G119: 1 | H119: 5 | I119: 3 | J119: 15 | K119: 3 | L119: 15 | M119: 17 | N119: 6 | O119: 35.29411765 | P119: 6 | Q119: 35.29411765
B120: ANCASH | C120: BOLOGNESI | D120: AQUIA | E120: 020504 | F120: 30 | G120: 1 | H120: 3.333333333 | I120: 10 | J120: 33.33333333 | K120: 2 | L120: 6.666666667 | M120: 26 | N120: 3 | O120: 11.53846154 | P120: 8 | Q120: 30.76923077
B121: ANCASH | C121: BOLOGNESI | D121: CAJACAY | E121: 020505 | F121: 21 | G121: 1 | H121: 4.761904762 | I121: 5 | J121: 23.80952381 | K121: 3 | L121: 14.28571429 | M121: 19 | N121: 0 | O121: 0 | P121: 8 | Q121: 42.10526316
B122: ANCASH | C122: BOLOGNESI | D122: CANIS | E122: 020506 | F122: (SD) | G122: (SD) | H122: (SD) | I122: (SD) | J122: (SD) | K122: (SD) | L122: (SD) | M122: (SD) | N122: (SD) | O122: (SD) | P122: (SD) | Q122: (SD)
B123: ANCASH | C123: BOLOGNESI | D123: COLQUIOC | E123: 020507 | F123: 63 | G123: 0 | H123: 0 | I123: 28 | J123: 44.44444444 | K123: 11 | L123: 17.46031746 | M123: 53 | N123: 4 | O123: 7.547169811 | P123: 29 | Q123: 54.71698113
B124: ANCASH | C124: BOLOGNESI | D124: HUALLANCA | E124: 020508 | F124: 195 | G124: 3 | H124: 1.538461538 | I124: 62 | J124: 31.79487179 | K124: 22 | L124: 11.28205128 | M124: 164 | N124: 12 | O124: 7.317073171 | P124: 81 | Q124: 49.3902439
B125: ANCASH | C125: BOLOGNESI | D125: HUASTA | E125: 020509 | F125: 27 | G125: 2 | H125: 7.407407407 | I125: 4 | J125: 14.81481481 | K125: 1 | L125: 3.703703704 | M125: 25 | N125: 8 | O125: 32 | P125: 4 | Q125: 16
B126: ANCASH | C126: BOLOGNESI | D126: HUAYLLACAYAN | E126: 020510 | F126: 28 | G126: 0 | H126: 0 | I126: 14 | J126: 50 | K126: 2 | L126: 7.142857143 | M126: 24 | N126: 3 | O126: 12.5 | P126: 13 | Q126: 54.16666667
B127: ANCASH | C127: BOLOGNESI | D127: LA PRIMAVERA | E127: 020511 | F127: 6 | G127: 0 | H127: 0 | I127: 3 | J127: 50 | K127: 1 | L127: 16.66666667 | M127: 5 | N127: 1 | O127: 20 | P127: 4 | Q127: 80
B128: ANCASH | C128: BOLOGNESI | D128: MANGAS | E128: 020512 | F128: 8 | G128: 0 | H128: 0 | I128: 1 | J128: 12.5 | K128: 0 | L128: 0 | M128: 8 | N128: 0 | O128: 0 | P128: 1 | Q128: 12.5
B129: ANCASH | C129: BOLOGNESI | D129: PACLLON | E129: 020513 | F129: 15 | G129: 0 | H129: 0 | I129: 7 | J129: 46.66666667 | K129: 2 | L129: 13.33333333 | M129: 12 | N129: 1 | O129: 8.333333333 | P129: 4 | Q129: 33.33333333
B130: ANCASH | C130: BOLOGNESI | D130: SAN MIGUEL DE CORPANQUI | E130: 020514 | F130: * | G130: * | H130: * | I130: * | J130: * | K130: * | L130: * | M130: * | N130: * | O130: * | P130: * | Q130: *
B131: ANCASH | C131: BOLOGNESI | D131: TICLLOS | E131: 020515 | F131: 7 | G131: 0 | H131: 0 | I131: 1 | J131: 14.28571429 | K131: 2 | L131: 28.57142857 | M131: 6 | N131: 0 | O131: 0 | P131: 4 | Q131: 66.66666667
B132: ANCASH | C132: CARHUAZ | D132: CARHUAZ | E132: 020601 | F132: 372 | G132: 8 | H132: 2.150537634 | I132: 116 | J132: 31.1827957 | K132: 41 | L132: 11.02150538 | M132: 340 | N132: 30 | O132: 8.823529412 | P132: 142 | Q132: 41.76470588
B133: ANCASH | C133: CARHUAZ | D133: ACOPAMPA | E133: 020602 | F133: 55 | G133: 0 | H133: 0 | I133: 25 | J133: 45.45454545 | K133: 10 | L133: 18.18181818 | M133: 48 | N133: 5 | O133: 10.41666667 | P133: 29 | Q133: 60.41666667
B134: ANCASH | C134: CARHUAZ | D134: AMASHCA | E134: 020603 | F134: 21 | G134: 0 | H134: 0 | I134: 6 | J134: 28.57142857 | K134: 4 | L134: 19.04761905 | M134: 20 | N134: 3 | O134: 15 | P134: 8 | Q134: 40
B135: ANCASH | C135: CARHUAZ | D135: ANTA | E135: 020604 | F135: 46 | G135: 0 | H135: 0 | I135: 18 | J135: 39.13043478 | K135: 7 | L135: 15.2173913 | M135: 41 | N135: 3 | O135: 7.317073171 | P135: 24 | Q135: 58.53658537
B136: ANCASH | C136: CARHUAZ | D136: ATAQUERO | E136: 020605 | F136: 38 | G136: 1 | H136: 2.631578947 | I136: 11 | J136: 28.94736842 | K136: 3 | L136: 7.894736842 | M136: 31 | N136: 5 | O136: 16.12903226 | P136: 9 | Q136: 29.03225806
B137: ANCASH | C137: CARHUAZ | D137: MARCARA | E137: 020606 | F137: 278 | G137: 6 | H137: 2.158273381 | I137: 103 | J137: 37.05035971 | K137: 32 | L137: 11.51079137 | M137: 239 | N137: 22 | O137: 9.205020921 | P137: 102 | Q137: 42.67782427
B138: ANCASH | C138: CARHUAZ | D138: PARIAHUANCA | E138: 020607 | F138: 38 | G138: 1 | H138: 2.631578947 | I138: 20 | J138: 52.63157895 | K138: 2 | L138: 5.263157895 | M138: 32 | N138: 1 | O138: 3.125 | P138: 15 | Q138: 46.875
B139: ANCASH | C139: CARHUAZ | D139: SAN MIGUEL DE ACO | E139: 020608 | F139: 76 | G139: 2 | H139: 2.631578947 | I139: 15 | J139: 19.73684211 | K139: 5 | L139: 6.578947368 | M139: 65 | N139: 6 | O139: 9.230769231 | P139: 19 | Q139: 29.23076923
B140: ANCASH | C140: CARHUAZ | D140: SHILLA | E140: 020609 | F140: 61 | G140: 3 | H140: 4.918032787 | I140: 27 | J140: 44.26229508 | K140: 5 | L140: 8.196721311 | M140: 53 | N140: 5 | O140: 9.433962264 | P140: 27 | Q140: 50.94339623
B141: ANCASH | C141: CARHUAZ | D141: TINCO | E141: 020610 | F141: 71 | G141: 0 | H141: 0 | I141: 26 | J141: 36.61971831 | K141: 9 | L141: 12.67605634 | M141: 63 | N141: 3 | O141: 4.761904762 | P141: 29 | Q141: 46.03174603
B142: ANCASH | C142: CARHUAZ | D142: YUNGAR | E142: 020611 | F142: 84 | G142: 1 | H142: 1.19047619 | I142: 32 | J142: 38.0952381 | K142: 11 | L142: 13.0952381 | M142: 72 | N142: 5 | O142: 6.944444444 | P142: 39 | Q142: 54.16666667
B143: ANCASH | C143: CARLOS FERMIN FITZCARRALD | D143: SAN LUIS | E143: 020701 | F143: 250 | G143: 6 | H143: 2.4 | I143: 96 | J143: 38.4 | K143: 34 | L143: 13.6 | M143: 222 | N143: 16 | O143: 7.207207207 | P143: 94 | Q143: 42.34234234
B144: ANCASH | C144: CARLOS FERMIN FITZCARRALD | D144: SAN NICOLAS | E144: 020702 | F144: 86 | G144: 2 | H144: 2.325581395 | I144: 42 | J144: 48.8372093 | K144: 5 | L144: 5.813953488 | M144: 79 | N144: 3 | O144: 3.797468354 | P144: 44 | Q144: 55.69620253
B145: ANCASH | C145: CARLOS FERMIN FITZCARRALD | D145: YAUYA | E145: 020703 | F145: 105 | G145: 1 | H145: 0.9523809524 | I145: 33 | J145: 31.42857143 | K145: 14 | L145: 13.33333333 | M145: 93 | N145: 6 | O145: 6.451612903 | P145: 44 | Q145: 47.31182796
B146: ANCASH | C146: CASMA | D146: CASMA | E146: 020801 | F146: 153 | G146: 4 | H146: 2.614379085 | I146: 57 | J146: 37.25490196 | K146: 41 | L146: 26.79738562 | M146: 140 | N146: 9 | O146: 6.428571429 | P146: 86 | Q146: 61.42857143
B147: ANCASH | C147: CASMA | D147: BUENA VISTA ALTA | E147: 020802 | F147: 125 | G147: 1 | H147: 0.8 | I147: 47 | J147: 37.6 | K147: 33 | L147: 26.4 | M147: 112 | N147: 5 | O147: 4.464285714 | P147: 77 | Q147: 68.75
B148: ANCASH | C148: CASMA | D148: COMANDANTE NOEL | E148: 020803 | F148: 70 | G148: 1 | H148: 1.428571429 | I148: 28 | J148: 40 | K148: 15 | L148: 21.42857143 | M148: 69 | N148: 4 | O148: 5.797101449 | P148: 45 | Q148: 65.2173913
B149: ANCASH | C149: CASMA | D149: YAUTAN | E149: 020804 | F149: 249 | G149: 2 | H149: 0.8032128514 | I149: 89 | J149: 35.74297189 | K149: 57 | L149: 22.89156627 | M149: 231 | N149: 9 | O149: 3.896103896 | P149: 125 | Q149: 54.11255411
B150: ANCASH | C150: CORONGO | D150: CORONGO | E150: 020901 | F150: 23 | G150: 0 | H150: 0 | I150: 8 | J150: 34.7826087 | K150: 3 | L150: 13.04347826 | M150: 21 | N150: 2 | O150: 9.523809524 | P150: 12 | Q150: 57.14285714
B151: ANCASH | C151: CORONGO | D151: ACO | E151: 020902 | F151: 12 | G151: 0 | H151: 0 | I151: 7 | J151: 58.33333333 | K151: 2 | L151: 16.66666667 | M151: 12 | N151: 0 | O151: 0 | P151: 8 | Q151: 66.66666667
B152: ANCASH | C152: CORONGO | D152: BAMBAS | E152: 020903 | F152: * | G152: * | H152: * | I152: * | J152: * | K152: * | L152: * | M152: * | N152: * | O152: * | P152: * | Q152: *
B153: ANCASH | C153: CORONGO | D153: CUSCA | E153: 020904 | F153: 42 | G153: 0 | H153: 0 | I153: 16 | J153: 38.0952381 | K153: 7 | L153: 16.66666667 | M153: 38 | N153: 3 | O153: 7.894736842 | P153: 22 | Q153: 57.89473684
B154: ANCASH | C154: CORONGO | D154: LA PAMPA | E154: 020905 | F154: 17 | G154: 0 | H154: 0 | I154: 4 | J154: 23.52941176 | K154: 8 | L154: 47.05882353 | M154: 14 | N154: 1 | O154: 7.142857143 | P154: 10 | Q154: 71.42857143
B155: ANCASH | C155: CORONGO | D155: YANAC | E155: 020906 | F155: 18 | G155: 0 | H155: 0 | I155: 5 | J155: 27.77777778 | K155: 2 | L155: 11.11111111 | M155: 16 | N155: 3 | O155: 18.75 | P155: 9 | Q155: 56.25
B156: ANCASH | C156: CORONGO | D156: YUPAN | E156: 020907 | F156: 7 | G156: 0 | H156: 0 | I156: 5 | J156: 71.42857143 | K156: 1 | L156: 14.28571429 | M156: 7 | N156: 0 | O156: 0 | P156: 4 | Q156: 57.14285714
B157: ANCASH | C157: HUARI | D157: HUARI | E157: 021001 | F157: 331 | G157: 0 | H157: 0 | I157: 137 | J157: 41.3897281 | K157: 43 | L157: 12.99093656 | M157: 292 | N157: 24 | O157: 8.219178082 | P157: 149 | Q157: 51.02739726
B158: ANCASH | C158: HUARI | D158: ANRA | E158: 021002 | F158: 31 | G158: 2 | H158: 6.451612903 | I158: 8 | J158: 25.80645161 | K158: 3 | L158: 9.677419355 | M158: 26 | N158: 4 | O158: 15.38461538 | P158: 10 | Q158: 38.46153846
B159: ANCASH | C159: HUARI | D159: CAJAY | E159: 021003 | F159: 73 | G159: 1 | H159: 1.369863014 | I159: 32 | J159: 43.83561644 | K159: 13 | L159: 17.80821918 | M159: 65 | N159: 7 | O159: 10.76923077 | P159: 29 | Q159: 44.61538462
B160: ANCASH | C160: HUARI | D160: CHAVIN DE HUANTAR | E160: 021004 | F160: 147 | G160: 1 | H160: 0.6802721088 | I160: 52 | J160: 35.37414966 | K160: 27 | L160: 18.36734694 | M160: 126 | N160: 10 | O160: 7.936507937 | P160: 55 | Q160: 43.65079365
B161: ANCASH | C161: HUARI | D161: HUACACHI | E161: 021005 | F161: 48 | G161: 0 | H161: 0 | I161: 28 | J161: 58.33333333 | K161: 3 | L161: 6.25 | M161: 39 | N161: 4 | O161: 10.25641026 | P161: 18 | Q161: 46.15384615
B162: ANCASH | C162: HUARI | D162: HUACCHIS | E162: 021006 | F162: 12 | G162: 0 | H162: 0 | I162: 6 | J162: 50 | K162: 2 | L162: 16.66666667 | M162: 11 | N162: 0 | O162: 0 | P162: 7 | Q162: 63.63636364
B163: ANCASH | C163: HUARI | D163: HUACHIS | E163: 021007 | F163: 70 | G163: 0 | H163: 0 | I163: 23 | J163: 32.85714286 | K163: 16 | L163: 22.85714286 | M163: 63 | N163: 1 | O163: 1.587301587 | P163: 39 | Q163: 61.9047619
B164: ANCASH | C164: HUARI | D164: HUANTAR | E164: 021008 | F164: 60 | G164: 1 | H164: 1.666666667 | I164: 21 | J164: 35 | K164: 1 | L164: 1.666666667 | M164: 49 | N164: 4 | O164: 8.163265306 | P164: 21 | Q164: 42.85714286
B165: ANCASH | C165: HUARI | D165: MASIN | E165: 021009 | F165: 36 | G165: 1 | H165: 2.777777778 | I165: 12 | J165: 33.33333333 | K165: 5 | L165: 13.88888889 | M165: 30 | N165: 2 | O165: 6.666666667 | P165: 15 | Q165: 50
B166: ANCASH | C166: HUARI | D166: PAUCAS | E166: 021010 | F166: 26 | G166: 0 | H166: 0 | I166: 12 | J166: 46.15384615 | K166: 4 | L166: 15.38461538 | M166: 25 | N166: 3 | O166: 12 | P166: 13 | Q166: 52
B167: ANCASH | C167: HUARI | D167: PONTO | E167: 021011 | F167: 68 | G167: 1 | H167: 1.470588235 | I167: 15 | J167: 22.05882353 | K167: 4 | L167: 5.882352941 | M167: 60 | N167: 8 | O167: 13.33333333 | P167: 22 | Q167: 36.66666667
B168: ANCASH | C168: HUARI | D168: RAHUAPAMPA | E168: 021012 | F168: 15 | G168: 0 | H168: 0 | I168: 7 | J168: 46.66666667 | K168: 1 | L168: 6.666666667 | M168: 13 | N168: 2 | O168: 15.38461538 | P168: 8 | Q168: 61.53846154
B169: ANCASH | C169: HUARI | D169: RAPAYAN | E169: 021013 | F169: 37 | G169: 0 | H169: 0 | I169: 8 | J169: 21.62162162 | K169: 6 | L169: 16.21621622 | M169: 34 | N169: 0 | O169: 0 | P169: 14 | Q169: 41.17647059
B170: ANCASH | C170: HUARI | D170: SAN MARCOS | E170: 021014 | F170: 366 | G170: 7 | H170: 1.912568306 | I170: 129 | J170: 35.24590164 | K170: 62 | L170: 16.93989071 | M170: 332 | N170: 19 | O170: 5.722891566 | P170: 182 | Q170: 54.81927711
B171: ANCASH | C171: HUARI | D171: SAN PEDRO DE CHANA | E171: 021015 | F171: 85 | G171: 0 | H171: 0 | I171: 27 | J171: 31.76470588 | K171: 10 | L171: 11.76470588 | M171: 78 | N171: 5 | O171: 6.41025641 | P171: 32 | Q171: 41.02564103
B172: ANCASH | C172: HUARI | D172: UCO | E172: 021016 | F172: * | G172: * | H172: * | I172: * | J172: * | K172: * | L172: * | M172: * | N172: * | O172: * | P172: * | Q172: *
B173: ANCASH | C173: HUARMEY | D173: HUARMEY | E173: 021101 | F173: 274 | G173: 4 | H173: 1.459854015 | I173: 83 | J173: 30.2919708 | K173: 70 | L173: 25.54744526 | M173: 244 | N173: 8 | O173: 3.278688525 | P173: 139 | Q173: 56.96721311
B174: ANCASH | C174: HUARMEY | D174: COCHAPETI | E174: 021102 | F174: 5 | G174: 0 | H174: 0 | I174: 1 | J174: 20 | K174: 2 | L174: 40 | M174: 4 | N174: 0 | O174: 0 | P174: 3 | Q174: 75
B175: ANCASH | C175: HUARMEY | D175: CULEBRAS | E175: 021103 | F175: 66 | G175: 0 | H175: 0 | I175: 32 | J175: 48.48484848 | K175: 15 | L175: 22.72727273 | M175: 60 | N175: 3 | O175: 5 | P175: 41 | Q175: 68.33333333
B176: ANCASH | C176: HUARMEY | D176: HUAYAN | E176: 021104 | F176: 13 | G176: 0 | H176: 0 | I176: 1 | J176: 7.692307692 | K176: 6 | L176: 46.15384615 | M176: 12 | N176: 2 | O176: 16.66666667 | P176: 5 | Q176: 41.66666667
B177: ANCASH | C177: HUARMEY | D177: MALVAS | E177: 021105 | F177: 12 | G177: 0 | H177: 0 | I177: 1 | J177: 8.333333333 | K177: 1 | L177: 8.333333333 | M177: 11 | N177: 3 | O177: 27.27272727 | P177: 4 | Q177: 36.36363636
B178: ANCASH | C178: HUAYLAS | D178: CARAZ | E178: 021201 | F178: 761 | G178: 14 | H178: 1.839684625 | I178: 247 | J178: 32.45729304 | K178: 97 | L178: 12.74638633 | M178: 684 | N178: 48 | O178: 7.01754386 | P178: 344 | Q178: 50.29239766
B179: ANCASH | C179: HUAYLAS | D179: HUALLANCA | E179: 021202 | F179: 33 | G179: 0 | H179: 0 | I179: 14 | J179: 42.42424242 | K179: 6 | L179: 18.18181818 | M179: 30 | N179: 1 | O179: 3.333333333 | P179: 14 | Q179: 46.66666667
B180: ANCASH | C180: HUAYLAS | D180: HUATA | E180: 021203 | F180: 31 | G180: 1 | H180: 3.225806452 | I180: 12 | J180: 38.70967742 | K180: 3 | L180: 9.677419355 | M180: 27 | N180: 2 | O180: 7.407407407 | P180: 12 | Q180: 44.44444444
B181: ANCASH | C181: HUAYLAS | D181: HUAYLAS | E181: 021204 | F181: 28 | G181: 0 | H181: 0 | I181: 14 | J181: 50 | K181: 3 | L181: 10.71428571 | M181: 27 | N181: 1 | O181: 3.703703704 | P181: 15 | Q181: 55.55555556
B182: ANCASH | C182: HUAYLAS | D182: MATO | E182: 021205 | F182: 58 | G182: 0 | H182: 0 | I182: 13 | J182: 22.4137931 | K182: 13 | L182: 22.4137931 | M182: 56 | N182: 0 | O182: 0 | P182: 24 | Q182: 42.85714286
B183: ANCASH | C183: HUAYLAS | D183: PAMPAROMAS | E183: 021206 | F183: 284 | G183: 3 | H183: 1.056338028 | I183: 97 | J183: 34.15492958 | K183: 26 | L183: 9.154929577 | M183: 275 | N183: 20 | O183: 7.272727273 | P183: 121 | Q183: 44
B184: ANCASH | C184: HUAYLAS | D184: PUEBLO LIBRE | E184: 021207 | F184: 148 | G184: 6 | H184: 4.054054054 | I184: 47 | J184: 31.75675676 | K184: 20 | L184: 13.51351351 | M184: 126 | N184: 15 | O184: 11.9047619 | P184: 50 | Q184: 39.68253968
B185: ANCASH | C185: HUAYLAS | D185: SANTA CRUZ | E185: 021208 | F185: 129 | G185: 0 | H185: 0 | I185: 52 | J185: 40.31007752 | K185: 18 | L185: 13.95348837 | M185: 122 | N185: 10 | O185: 8.196721311 | P185: 65 | Q185: 53.27868852
B186: ANCASH | C186: HUAYLAS | D186: SANTO TORIBIO | E186: 021209 | F186: 25 | G186: 1 | H186: 4 | I186: 4 | J186: 16 | K186: 1 | L186: 4 | M186: 24 | N186: 1 | O186: 4.166666667 | P186: 7 | Q186: 29.16666667
B187: ANCASH | C187: HUAYLAS | D187: YURACMARCA | E187: 021210 | F187: 67 | G187: 0 | H187: 0 | I187: 27 | J187: 40.29850746 | K187: 12 | L187: 17.91044776 | M187: 59 | N187: 4 | O187: 6.779661017 | P187: 37 | Q187: 62.71186441
B188: ANCASH | C188: MARISCAL LUZURIAGA | D188: PISCOBAMBA | E188: 021301 | F188: 102 | G188: 1 | H188: 0.9803921569 | I188: 45 | J188: 44.11764706 | K188: 13 | L188: 12.74509804 | M188: 86 | N188: 3 | O188: 3.488372093 | P188: 47 | Q188: 54.65116279
B189: ANCASH | C189: MARISCAL LUZURIAGA | D189: CASCA | E189: 021302 | F189: 113 | G189: 1 | H189: 0.8849557522 | I189: 35 | J189: 30.97345133 | K189: 11 | L189: 9.734513274 | M189: 96 | N189: 4 | O189: 4.166666667 | P189: 42 | Q189: 43.75
B190: ANCASH | C190: MARISCAL LUZURIAGA | D190: ELEAZAR GUZMAN BARRON | E190: 021303 | F190: 19 | G190: 0 | H190: 0 | I190: 7 | J190: 36.84210526 | K190: 2 | L190: 10.52631579 | M190: 14 | N190: 1 | O190: 7.142857143 | P190: 6 | Q190: 42.85714286
B191: ANCASH | C191: MARISCAL LUZURIAGA | D191: FIDEL OLIVAS ESCUDERO | E191: 021304 | F191: 53 | G191: 1 | H191: 1.886792453 | I191: 11 | J191: 20.75471698 | K191: 6 | L191: 11.32075472 | M191: 47 | N191: 11 | O191: 23.40425532 | P191: 17 | Q191: 36.17021277
B192: ANCASH | C192: MARISCAL LUZURIAGA | D192: LLAMA | E192: 021305 | F192: 15 | G192: 0 | H192: 0 | I192: 5 | J192: 33.33333333 | K192: 0 | L192: 0 | M192: 15 | N192: 0 | O192: 0 | P192: 4 | Q192: 26.66666667
B193: ANCASH | C193: MARISCAL LUZURIAGA | D193: LLUMPA | E193: 021306 | F193: 155 | G193: 2 | H193: 1.290322581 | I193: 59 | J193: 38.06451613 | K193: 18 | L193: 11.61290323 | M193: 139 | N193: 17 | O193: 12.23021583 | P193: 55 | Q193: 39.56834532
B194: ANCASH | C194: MARISCAL LUZURIAGA | D194: LUCMA | E194: 021307 | F194: 70 | G194: 2 | H194: 2.857142857 | I194: 30 | J194: 42.85714286 | K194: 4 | L194: 5.714285714 | M194: 60 | N194: 4 | O194: 6.666666667 | P194: 32 | Q194: 53.33333333
B195: ANCASH | C195: MARISCAL LUZURIAGA | D195: MUSGA | E195: 021308 | F195: 8 | G195: 0 | H195: 0 | I195: 2 | J195: 25 | K195: 3 | L195: 37.5 | M195: 7 | N195: 3 | O195: 42.85714286 | P195: 3 | Q195: 42.85714286
B196: ANCASH | C196: OCROS | D196: OCROS | E196: 021401 | F196: 26 | G196: 0 | H196: 0 | I196: 6 | J196: 23.07692308 | K196: 0 | L196: 0 | M196: 26 | N196: 1 | O196: 3.846153846 | P196: 10 | Q196: 38.46153846
B197: ANCASH | C197: OCROS | D197: ACAS | E197: 021402 | F197: * | G197: * | H197: * | I197: * | J197: * | K197: * | L197: * | M197: * | N197: * | O197: * | P197: * | Q197: *
B198: ANCASH | C198: OCROS | D198: CAJAMARQUILLA | E198: 021403 | F198: 5 | G198: 0 | H198: 0 | I198: 1 | J198: 20 | K198: 1 | L198: 20 | M198: 5 | N198: 0 | O198: 0 | P198: 1 | Q198: 20
B199: ANCASH | C199: OCROS | D199: CARHUAPAMPA | E199: 021404 | F199: (SD) | G199: (SD) | H199: (SD) | I199: (SD) | J199: (SD) | K199: (SD) | L199: (SD) | M199: (SD) | N199: (SD) | O199: (SD) | P199: (SD) | Q199: (SD)
B200: ANCASH | C200: OCROS | D200: COCHAS | E200: 021405 | F200: 13 | G200: 1 | H200: 7.692307692 | I200: 5 | J200: 38.46153846 | K200: 6 | L200: 46.15384615 | M200: 13 | N200: 0 | O200: 0 | P200: 11 | Q200: 84.61538462
B201: ANCASH | C201: OCROS | D201: CONGAS | E201: 021406 | F201: 12 | G201: 0 | H201: 0 | I201: 5 | J201: 41.66666667 | K201: 1 | L201: 8.333333333 | M201: 11 | N201: 1 | O201: 9.090909091 | P201: 4 | Q201: 36.36363636
B202: ANCASH | C202: OCROS | D202: LLIPA | E202: 021407 | F202: * | G202: * | H202: * | I202: * | J202: * | K202: * | L202: * | M202: * | N202: * | O202: * | P202: * | Q202: *
... 1690 more rows

Sheet Anemia x DEP
B2: CUADRO N°04 PERÚ: ANEMIA EN GESTANTES QUE ACCEDIERON A LOS ESTABLECIMIENTOS DE SALUD POR NIVELES, SEGÚN DEPARTAMENTO
B3: =INICIO!C$8 -> PERIODO: ENERO A DICIEMBRE - 2022
B5: DEPARTAMENTO | C5: N° DE EVALUADAS | D5: ANEMIA TOTAL | F5: ANEMIA LEVE1 | H5: ANEMIA MODERADA2 | J5: ANEMIA SEVERA3
D6: N° DE CASOS | E6: % | F6: N° DE CASOS | G6: % | H6: N° DE CASOS | I6: % | J6: N° DE CASOS | K6: %
B7: AMAZONAS | C7: 9471 | D7: 1196 | E7: 12.62802238 | F7: 902 | G7: 9.523809524 | H7: 289 | I7: 3.051420125 | J7: 5 | K7: 0.05279273572
B8: ÁNCASH | C8: 10260 | D8: 2569 | E8: 25.03898635 | F8: 1374 | G8: 13.39181287 | H8: 1173 | I8: 11.43274854 | J8: 22 | K8: 0.2144249513
B9: APURÍMAC | C9: 6952 | D9: 1475 | E9: 21.216916 | F9: 901 | G9: 12.96029919 | H9: 560 | I9: 8.055235903 | J9: 14 | K9: 0.2013808976
B10: AREQUIPA | C10: (SD) | D10: (SD) | E10: (SD) | F10: (SD) | G10: (SD) | H10: (SD) | I10: (SD) | J10: (SD) | K10: (SD)
B11: AYACUCHO | C11: 11041 | D11: 2671 | E11: 24.19164931 | F11: 1578 | G11: 14.29218368 | H11: 1080 | I11: 9.78172267 | J11: 13 | K11: 0.1177429581
B12: CAJAMARCA | C12: 21859 | D12: 4108 | E12: 18.79317444 | F12: 2537 | G12: 11.60620339 | H12: 1543 | I12: 7.05887735 | J12: 28 | K12: 0.1280936914
B13: CALLAO | C13: (SD) | D13: (SD) | E13: (SD) | F13: (SD) | G13: (SD) | H13: (SD) | I13: (SD) | J13: (SD) | K13: (SD)
B14: CUSCO | C14: 20579 | D14: 4782 | E14: 23.23728072 | F14: 2733 | G14: 13.28052869 | H14: 1995 | I14: 9.694348608 | J14: 54 | K14: 0.262403421
B15: HUANCAVELICA | C15: 6361 | D15: 2199 | E15: 34.57003616 | F15: 1052 | G15: 16.53828014 | H15: 1087 | I15: 17.0885081 | J15: 60 | K15: 0.943247917
B16: HUÁNUCO | C16: (SD) | D16: (SD) | E16: (SD) | F16: (SD) | G16: (SD) | H16: (SD) | I16: (SD) | J16: (SD) | K16: (SD)
B17: ICA | C17: 8643 | D17: 1194 | E17: 13.81464769 | F17: 823 | G17: 9.522156659 | H17: 371 | I17: 4.292491033 | J17: 0 | K17: 0
B18: JUNÍN | C18: 14911 | D18: 3131 | E18: 20.997921 | F18: 1648 | G18: 11.05224331 | H18: 1445 | I18: 9.690832271 | J18: 38 | K18: 0.2548454161
B19: LA LIBERTAD | C19: 22772 | D19: 4884 | E19: 21.44739153 | F19: 2939 | G19: 12.9062006 | H19: 1908 | I19: 8.378710697 | J19: 37 | K19: 0.1624802389
B20: LAMBAYEQUE | C20: 5347 | D20: 964 | E20: 18.0288012 | F20: 581 | G20: 10.86590612 | H20: 373 | I20: 6.975874322 | J20: 10 | K20: 0.1870207593
B21: LIMA | C21: 22833 | D21: 3641 | E21: 15.94621819 | F21: 2456 | G21: 10.75636141 | H21: 1179 | I21: 5.16357903 | J21: 6 | K21: 0.02627775588
B22: LORETO | C22: 16319 | D22: 2298 | E22: 14.0817452 | F22: 1574 | G22: 9.645198848 | H22: 710 | I22: 4.350756787 | J22: 14 | K22: 0.08578957044
B23: MADRE DE DIOS | C23: 4382 | D23: 751 | E23: 17.13829302 | F23: 447 | G23: 10.20082154 | H23: 302 | I23: 6.891830215 | J23: 2 | K23: 0.0456412597
B24: MOQUEGUA | C24: (SD) | D24: (SD) | E24: (SD) | F24: (SD) | G24: (SD) | H24: (SD) | I24: (SD) | J24: (SD) | K24: (SD)
B25: PASCO | C25: 4575 | D25: 1535 | E25: 33.55191257 | F25: 665 | G25: 14.53551913 | H25: 687 | I25: 15.01639344 | J25: 183 | K25: 4
B26: PIURA | C26: 16420 | D26: 2534 | E26: 15.43239951 | F26: 1684 | G26: 10.25578563 | H26: 848 | I26: 5.164433618 | J26: 2 | K26: 0.01218026797
B27: PUNO | C27: 13653 | D27: 4569 | E27: 33.46517249 | F27: 2349 | G27: 17.20500989 | H27: 2104 | I27: 15.41053248 | J27: 116 | K27: 0.8496301179
B28: SAN MARTÍN | C28: 10761 | D28: 1093 | E28: 10.1570486 | F28: 841 | G28: 7.815258805 | H28: 250 | I28: 2.323204163 | J28: 2 | K28: 0.01858563331
B29: TACNA | C29: 2068 | D29: 270 | E29: 13.05609284 | F29: 133 | G29: 6.431334623 | H29: 136 | I29: 6.576402321 | J29: 1 | K29: 0.04835589942
B30: TUMBES | C30: 4866 | D30: 698 | E30: 14.34443074 | F30: 497 | G30: 10.21372791 | H30: 198 | I30: 4.069050555 | J30: 3 | K30: 0.06165228113
B31: UCAYALI | C31: (SD) | D31: (SD) | E31: (SD) | F31: (SD) | G31: (SD) | H31: (SD) | I31: (SD) | J31: (SD) | K31: (SD)
B32: PERÚ | C32: =SUM(C7:C31) -> 234073 | D32: =SUM(D7:D31) -> 46562 | E32: =D32/C32*100 -> 19.89208495 | F32: =SUM(F7:F31) -> 27714 | G32: =F32/C32*100 -> 11.8398961 | H32: =SUM(H7:H31) -> 18238 | I32: =H32/C32*100 -> 7.791586385 | J32: =SUM(J7:J31) -> 610 | K32: =J32/C32*100 -> 0.2606024616
B33: =CONCATENATE("Fuente: Sistema de Información del Estado Nutricional en gestantes que acceden al establecimiento de salud, ",RIGHT(INICIO!C$8,4),".") -> Fuente: Sistema de Información del Estado Nutricional en gestantes que acceden al establecimiento de salud, 2022.
B34: Instituto Nacional de Salud / Centro Nacional de Alimentación y Nutrición / Dirección Ejecutiva de Vigilancia Alimentaria y Nutricional.
B35: 1,2,3 Adaptado de Hurtado A, Merino C, Delgado E. Influence of anoxemia on haematopoietic activities. Archives of Internal Medicine, 1945, 75(5):284-323. / Iron Deficiency Anaemia: Assessment, Prevention, and Control. A guide for programme managers. WHO – 2001. / CDC Recommendations to Prevent and Control Iron Deficiency in the United States MMWR June 03,1998/47(3); MMWR June 09,1989/38(22);400-404.
B36: (SD) Diresas sin registro de gestantes

Sheet Anemia x DIRESA
B2: CUADRO N°05 PERÚ: ANEMIA EN GESTANTES QUE ACCEDIERON A LOS ESTABLECIMIENTOS DE SALUD POR NIVELES, SEGÚN DIRESA / GERESA / DISA
B3: =INICIO!C$8 -> PERIODO: ENERO A DICIEMBRE - 2022
B5: DIRESA / GERESA / DISA | C5: N° DE EVALUADAS | D5: ANEMIA TOTAL | F5: ANEMIA LEVE1 | H5: ANEMIA MODERADA2 | J5: ANEMIA SEVERA3
D6: N° DE CASOS | E6: % | F6: N° DE CASOS | G6: % | H6: N° DE CASOS | I6: % | J6: N° DE CASOS | K6: %
B7: AMAZONAS | C7: 9471 | D7: 1196 | E7: 12.62802238 | F7: 902 | G7: 9.523809524 | H7: 289 | I7: 3.051420125 | J7: 5 | K7: 0.05279273572
B8: ÁNCASH | C8: 10260 | D8: 2569 | E8: 25.03898635 | F8: 1374 | G8: 13.39181287 | H8: 1173 | I8: 11.43274854 | J8: 22 | K8: 0.2144249513
B9: ANDAHUAYLAS | C9: 2323 | D9: 485 | E9: 20.87817477 | F9: 319 | G9: 13.73224279 | H9: 165 | I9: 7.102884201 | J9: 1 | K9: 0.04304778304
B10: APURÍMAC | C10: 4629 | D10: 990 | E10: 21.38690862 | F10: 582 | G10: 12.57290992 | H10: 395 | I10: 8.53316051 | J10: 13 | K10: 0.280838194
B11: AREQUIPA | C11: (SD) | D11: (SD) | E11: (SD) | F11: (SD) | G11: (SD) | H11: (SD) | I11: (SD) | J11: (SD) | K11: (SD)
B12: AYACUCHO | C12: 11041 | D12: 2671 | E12: 24.19164931 | F12: 1578 | G12: 14.29218368 | H12: 1080 | I12: 9.78172267 | J12: 13 | K12: 0.1177429581
B13: CAJAMARCA | C13: 12350 | D13: 2778 | E13: 22.49392713 | F13: 1586 | G13: 12.84210526 | H13: 1166 | I13: 9.441295547 | J13: 26 | K13: 0.2105263158
B14: CALLAO | C14: (SD) | D14: (SD) | E14: (SD) | F14: (SD) | G14: (SD) | H14: (SD) | I14: (SD) | J14: (SD) | K14: (SD)
B15: CHOTA | C15: 2198 | D15: 472 | E15: 21.47406733 | F15: 321 | G15: 14.60418562 | H15: 151 | I15: 6.869881711 | J15: 0 | K15: 0
B16: CUSCO | C16: 20579 | D16: 4782 | E16: 23.23728072 | F16: 2733 | G16: 13.28052869 | H16: 1995 | I16: 9.694348608 | J16: 54 | K16: 0.262403421
B17: CUTERVO | C17: 1798 | D17: 139 | E17: 7.730812013 | F17: 108 | G17: 6.006674082 | H17: 31 | I17: 1.724137931 | J17: 0 | K17: 0
B18: HUANCAVELICA | C18: 6361 | D18: 2199 | E18: 34.57003616 | F18: 1052 | G18: 16.53828014 | H18: 1087 | I18: 17.0885081 | J18: 60 | K18: 0.943247917
B19: HUÁNUCO | C19: (SD) | D19: (SD) | E19: (SD) | F19: (SD) | G19: (SD) | H19: (SD) | I19: (SD) | J19: (SD) | K19: (SD)
B20: ICA | C20: 8643 | D20: 1194 | E20: 13.81464769 | F20: 823 | G20: 9.522156659 | H20: 371 | I20: 4.292491033 | J20: 0 | K20: 0
B21: JAÉN | C21: 5513 | D21: 719 | E21: 13.04190096 | F21: 522 | G21: 9.468528932 | H21: 195 | I21: 3.537094141 | J21: 2 | K21: 0.03627788863
B22: JUNÍN | C22: 14911 | D22: 3131 | E22: 20.997921 | F22: 1648 | G22: 11.05224331 | H22: 1445 | I22: 9.690832271 | J22: 38 | K22: 0.2548454161
B23: LA LIBERTAD | C23: 22772 | D23: 4884 | E23: 21.44739153 | F23: 2939 | G23: 12.9062006 | H23: 1908 | I23: 8.378710697 | J23: 37 | K23: 0.1624802389
B24: LAMBAYEQUE | C24: 5347 | D24: 964 | E24: 18.0288012 | F24: 581 | G24: 10.86590612 | H24: 373 | I24: 6.975874322 | J24: 10 | K24: 0.1870207593
B25: LIMA | C25: 8695 | D25: 1416 | E25: 16.28522139 | F25: 868 | G25: 9.982748706 | H25: 543 | I25: 6.244968373 | J25: 5 | K25: 0.05750431282
B26: LIMA CENTRO | C26: (SD) | D26: (SD) | E26: (SD) | F26: (SD) | G26: (SD) | H26: (SD) | I26: (SD) | J26: (SD) | K26: (SD)
B27: LIMA ESTE | C27: (SD) | D27: (SD) | E27: (SD) | F27: (SD) | G27: (SD) | H27: (SD) | I27: (SD) | J27: (SD) | K27: (SD)
B28: LIMA NORTE | C28: (SD) | D28: (SD) | E28: (SD) | F28: (SD) | G28: (SD) | H28: (SD) | I28: (SD) | J28: (SD) | K28: (SD)
B29: LIMA SUR | C29: 14138 | D29: 2225 | E29: 15.73772811 | F29: 1588 | G29: 11.23214033 | H29: 636 | I29: 4.498514641 | J29: 1 | K29: 0.007073136229
B30: LORETO | C30: 16319 | D30: 2298 | E30: 14.0817452 | F30: 1574 | G30: 9.645198848 | H30: 710 | I30: 4.350756787 | J30: 14 | K30: 0.08578957044
B31: MADRE DE DIOS | C31: 4382 | D31: 751 | E31: 17.13829302 | F31: 447 | G31: 10.20082154 | H31: 302 | I31: 6.891830215 | J31: 2 | K31: 0.0456412597
B32: MOQUEGUA | C32: (SD) | D32: (SD) | E32: (SD) | F32: (SD) | G32: (SD) | H32: (SD) | I32: (SD) | J32: (SD) | K32: (SD)
B33: PASCO | C33: 4575 | D33: 1535 | E33: 33.55191257 | F33: 665 | G33: 14.53551913 | H33: 687 | I33: 15.01639344 | J33: 183 | K33: 4
B34: PIURA | C34: 6030 | D34: 1069 | E34: 17.72802653 | F34: 693 | G34: 11.49253731 | H34: 374 | I34: 6.202321725 | J34: 2 | K34: 0.03316749585
B35: PUNO | C35: 13653 | D35: 4569 | E35: 33.46517249 | F35: 2349 | G35: 17.20500989 | H35: 2104 | I35: 15.41053248 | J35: 116 | K35: 0.8496301179
B36: SAN MARTÍN | C36: 10761 | D36: 1093 | E36: 10.1570486 | F36: 841 | G36: 7.815258805 | H36: 250 | I36: 2.323204163 | J36: 2 | K36: 0.01858563331
B37: SULLANA | C37: 10390 | D37: 1465 | E37: 14.10009625 | F37: 991 | G37: 9.538017324 | H37: 474 | I37: 4.562078922 | J37: 0 | K37: 0
B38: TACNA | C38: 2068 | D38: 270 | E38: 13.05609284 | F38: 133 | G38: 6.431334623 | H38: 136 | I38: 6.576402321 | J38: 1 | K38: 0.04835589942
B39: TUMBES | C39: 4866 | D39: 698 | E39: 14.34443074 | F39: 497 | G39: 10.21372791 | H39: 198 | I39: 4.069050555 | J39: 3 | K39: 0.06165228113
B40: UCAYALI | C40: (SD) | D40: (SD) | E40: (SD) | F40: (SD) | G40: (SD) | H40: (SD) | I40: (SD) | J40: (SD) | K40: (SD)
B41: PERÚ | C41: =SUM(C7:C40) -> 234073 | D41: =SUM(D7:D40) -> 46562 | E41: =D41/C41*100 -> 19.89208495 | F41: =SUM(F7:F40) -> 27714 | G41: =F41/C41*100 -> 11.8398961 | H41: =SUM(H7:H40) -> 18238 | I41: =H41/C41*100 -> 7.791586385 | J41: =SUM(J7:J40) -> 610 | K41: =J41/C41*100 -> 0.2606024616
B42: =CONCATENATE("Fuente: Sistema de Información del Estado Nutricional en gestantes que acceden al establecimiento de salud, ",RIGHT(INICIO!C$8,4),".") -> Fuente: Sistema de Información del Estado Nutricional en gestantes que acceden al establecimiento de salud, 2022.
B43: Instituto Nacional de Salud / Centro Nacional de Alimentación y Nutrición / Dirección Ejecutiva de Vigilancia Alimentaria y Nutricional.
B44: 1,2,3 Adaptado de Hurtado A, Merino C, Delgado E. Influence of anoxemia on haematopoietic activities. Archives of Internal Medicine, 1945, 75(5):284-323. / Iron Deficiency Anaemia: Assessment, Prevention, and Control. A guide for programme managers. WHO – 2001. / CDC Recommendations to Prevent and Control Iron Deficiency in the United States MMWR June 03,1998/47(3); MMWR June 09,1989/38(22);400-404.
B45: (SD) Diresas sin registro de gestantes

Sheet Anemia x DISTRITO
B2: CUADRO N°06 PERÚ: ANEMIA EN GESTANTES QUE ACCEDIERON A LOS ESTABLECIMIENTOS DE SALUD POR NIVELES, SEGÚN DEPARTAMENTO, PROVINCIA Y DISTRITO
B3: =INICIO!C$8 -> PERIODO: ENERO A DICIEMBRE - 2022
B5: DEPARTAMENTO | C5: PROVINCIA | D5: DISTRITO | E5: UBIGEO | F5: N° DE EVALUADAS | G5: ANEMIA TOTAL | I5: ANEMIA LEVE1 | K5: ANEMIA MODERADA2 | M5: ANEMIA SEVERA3
G6: N° DE CASOS | H6: % | I6: N° DE CASOS | J6: % | K6: N° DE CASOS | L6: % | M6: N° DE CASOS | N6: %
B7: AMAZONAS | C7: CHACHAPOYAS | D7: CHACHAPOYAS | E7: 010101 | F7: 202 | G7: 24 | H7: 11.88118812 | I7: 17 | J7: 8.415841584 | K7: 7 | L7: 3.465346535 | M7: 0 | N7: 0
B8: AMAZONAS | C8: CHACHAPOYAS | D8: ASUNCION | E8: 010102 | F8: * | G8: * | H8: * | I8: * | J8: * | K8: * | L8: * | M8: * | N8: *
B9: AMAZONAS | C9: CHACHAPOYAS | D9: BALSAS | E9: 010103 | F9: 25 | G9: 7 | H9: 28 | I9: 6 | J9: 24 | K9: 1 | L9: 4 | M9: 0 | N9: 0
B10: AMAZONAS | C10: CHACHAPOYAS | D10: CHETO | E10: 010104 | F10: 7 | G10: 0 | H10: 0 | I10: 0 | J10: 0 | K10: 0 | L10: 0 | M10: 0 | N10: 0
B11: AMAZONAS | C11: CHACHAPOYAS | D11: CHILIQUIN | E11: 010105 | F11: 6 | G11: 1 | H11: 16.66666667 | I11: 1 | J11: 16.66666667 | K11: 0 | L11: 0 | M11: 0 | N11: 0
B12: AMAZONAS | C12: CHACHAPOYAS | D12: CHUQUIBAMBA | E12: 010106 | F12: 17 | G12: 3 | H12: 17.64705882 | I12: 2 | J12: 11.76470588 | K12: 1 | L12: 5.882352941 | M12: 0 | N12: 0
B13: AMAZONAS | C13: CHACHAPOYAS | D13: GRANADA | E13: 010107 | F13: * | G13: * | H13: * | I13: * | J13: * | K13: * | L13: * | M13: * | N13: *
B14: AMAZONAS | C14: CHACHAPOYAS | D14: HUANCAS | E14: 010108 | F14: (SD) | G14: (SD) | H14: (SD) | I14: (SD) | J14: (SD) | K14: (SD) | L14: (SD) | M14: (SD) | N14: (SD)
B15: AMAZONAS | C15: CHACHAPOYAS | D15: LA JALCA | E15: 010109 | F15: 21 | G15: 8 | H15: 38.0952381 | I15: 8 | J15: 38.0952381 | K15: 0 | L15: 0 | M15: 0 | N15: 0
B16: AMAZONAS | C16: CHACHAPOYAS | D16: LEIMEBAMBA | E16: 010110 | F16: 29 | G16: 4 | H16: 13.79310345 | I16: 3 | J16: 10.34482759 | K16: 1 | L16: 3.448275862 | M16: 0 | N16: 0
B17: AMAZONAS | C17: CHACHAPOYAS | D17: LEVANTO | E17: 010111 | F17: 11 | G17: 0 | H17: 0 | I17: 0 | J17: 0 | K17: 0 | L17: 0 | M17: 0 | N17: 0
B18: AMAZONAS | C18: CHACHAPOYAS | D18: MAGDALENA | E18: 010112 | F18: 10 | G18: 1 | H18: 10 | I18: 1 | J18: 10 | K18: 0 | L18: 0 | M18: 0 | N18: 0
B19: AMAZONAS | C19: CHACHAPOYAS | D19: MARISCAL CASTILLA | E19: 010113 | F19: (SD) | G19: (SD) | H19: (SD) | I19: (SD) | J19: (SD) | K19: (SD) | L19: (SD) | M19: (SD) | N19: (SD)
B20: AMAZONAS | C20: CHACHAPOYAS | D20: MOLINOPAMPA | E20: 010114 | F20: 24 | G20: 2 | H20: 8.333333333 | I20: 2 | J20: 8.333333333 | K20: 0 | L20: 0 | M20: 0 | N20: 0
B21: AMAZONAS | C21: CHACHAPOYAS | D21: MONTEVIDEO | E21: 010115 | F21: * | G21: * | H21: * | I21: * | J21: * | K21: * | L21: * | M21: * | N21: *
B22: AMAZONAS | C22: CHACHAPOYAS | D22: OLLEROS | E22: 010116 | F22: * | G22: * | H22: * | I22: * | J22: * | K22: * | L22: * | M22: * | N22: *
B23: AMAZONAS | C23: CHACHAPOYAS | D23: QUINJALCA | E23: 010117 | F23: (SD) | G23: (SD) | H23: (SD) | I23: (SD) | J23: (SD) | K23: (SD) | L23: (SD) | M23: (SD) | N23: (SD)
B24: AMAZONAS | C24: CHACHAPOYAS | D24: SAN FRANCISCO DE DAGUAS | E24: 010118 | F24: * | G24: * | H24: * | I24: * | J24: * | K24: * | L24: * | M24: * | N24: *
B25: AMAZONAS | C25: CHACHAPOYAS | D25: SAN ISIDRO DE MAINO | E25: 010119 | F25: 5 | G25: 0 | H25: 0 | I25: 0 | J25: 0 | K25: 0 | L25: 0 | M25: 0 | N25: 0
B26: AMAZONAS | C26: CHACHAPOYAS | D26: SOLOCO | E26: 010120 | F26: 7 | G26: 1 | H26: 14.28571429 | I26: 1 | J26: 14.28571429 | K26: 0 | L26: 0 | M26: 0 | N26: 0
B27: AMAZONAS | C27: CHACHAPOYAS | D27: SONCHE | E27: 010121 | F27: * | G27: * | H27: * | I27: * | J27: * | K27: * | L27: * | M27: * | N27: *
B28: AMAZONAS | C28: BAGUA | D28: BAGUA | E28: 010201 | F28: 167 | G28: 16 | H28: 9.580838323 | I28: 10 | J28: 5.988023952 | K28: 6 | L28: 3.592814371 | M28: 0 | N28: 0
B29: AMAZONAS | C29: BAGUA | D29: ARAMANGO | E29: 010202 | F29: 253 | G29: 14 | H29: 5.533596838 | I29: 12 | J29: 4.743083004 | K29: 2 | L29: 0.790513834 | M29: 0 | N29: 0
B30: AMAZONAS | C30: BAGUA | D30: COPALLIN | E30: 010203 | F30: 85 | G30: 9 | H30: 10.58823529 | I30: 7 | J30: 8.235294118 | K30: 2 | L30: 2.352941176 | M30: 0 | N30: 0
B31: AMAZONAS | C31: BAGUA | D31: EL PARCO | E31: 010204 | F31: 26 | G31: 2 | H31: 7.692307692 | I31: 0 | J31: 0 | K31: 2 | L31: 7.692307692 | M31: 0 | N31: 0
B32: AMAZONAS | C32: BAGUA | D32: IMAZA | E32: 010205 | F32: 2012 | G32: 265 | H32: 13.17097416 | I32: 194 | J32: 9.642147117 | K32: 71 | L32: 3.528827038 | M32: 0 | N32: 0
B33: AMAZONAS | C33: BAGUA | D33: LA PECA | E33: 010206 | F33: 89 | G33: 0 | H33: 0 | I33: 0 | J33: 0 | K33: 0 | L33: 0 | M33: 0 | N33: 0
B34: AMAZONAS | C34: BONGARA | D34: JUMBILLA | E34: 010301 | F34: 11 | G34: 1 | H34: 9.090909091 | I34: 1 | J34: 9.090909091 | K34: 0 | L34: 0 | M34: 0 | N34: 0
B35: AMAZONAS | C35: BONGARA | D35: CHISQUILLA | E35: 010302 | F35: * | G35: * | H35: * | I35: * | J35: * | K35: * | L35: * | M35: * | N35: *
B36: AMAZONAS | C36: BONGARA | D36: CHURUJA | E36: 010303 | F36: * | G36: * | H36: * | I36: * | J36: * | K36: * | L36: * | M36: * | N36: *
B37: AMAZONAS | C37: BONGARA | D37: COROSHA | E37: 010304 | F37: 10 | G37: 2 | H37: 20 | I37: 2 | J37: 20 | K37: 0 | L37: 0 | M37: 0 | N37: 0
B38: AMAZONAS | C38: BONGARA | D38: CUISPES | E38: 010305 | F38: * | G38: * | H38: * | I38: * | J38: * | K38: * | L38: * | M38: * | N38: *
B39: AMAZONAS | C39: BONGARA | D39: FLORIDA | E39: 010306 | F39: 24 | G39: 6 | H39: 25 | I39: 5 | J39: 20.83333333 | K39: 1 | L39: 4.166666667 | M39: 0 | N39: 0
B40: AMAZONAS | C40: BONGARA | D40: JAZAN | E40: 010307 | F40: 78 | G40: 9 | H40: 11.53846154 | I40: 7 | J40: 8.974358974 | K40: 2 | L40: 2.564102564 | M40: 0 | N40: 0
B41: AMAZONAS | C41: BONGARA | D41: RECTA | E41: 010308 | F41: (SD) | G41: (SD) | H41: (SD) | I41: (SD) | J41: (SD) | K41: (SD) | L41: (SD) | M41: (SD) | N41: (SD)
B42: AMAZONAS | C42: BONGARA | D42: SAN CARLOS | E42: 010309 | F42: (SD) | G42: (SD) | H42: (SD) | I42: (SD) | J42: (SD) | K42: (SD) | L42: (SD) | M42: (SD) | N42: (SD)
B43: AMAZONAS | C43: BONGARA | D43: SHIPASBAMBA | E43: 010310 | F43: 12 | G43: 0 | H43: 0 | I43: 0 | J43: 0 | K43: 0 | L43: 0 | M43: 0 | N43: 0
B44: AMAZONAS | C44: BONGARA | D44: VALERA | E44: 010311 | F44: 16 | G44: 1 | H44: 6.25 | I44: 1 | J44: 6.25 | K44: 0 | L44: 0 | M44: 0 | N44: 0
B45: AMAZONAS | C45: BONGARA | D45: YAMBRASBAMBA | E45: 010312 | F45: 25 | G45: 0 | H45: 0 | I45: 0 | J45: 0 | K45: 0 | L45: 0 | M45: 0 | N45: 0
B46: AMAZONAS | C46: CONDORCANQUI | D46: NIEVA | E46: 010401 | F46: 1878 | G46: 296 | H46: 15.76144835 | I46: 232 | J46: 12.35356763 | K46: 62 | L46: 3.301384452 | M46: 2 | N46: 0.1064962726
B47: AMAZONAS | C47: CONDORCANQUI | D47: EL CENEPA | E47: 010402 | F47: 743 | G47: 81 | H47: 10.90174966 | I47: 69 | J47: 9.286675639 | K47: 11 | L47: 1.480484522 | M47: 1 | N47: 0.134589502
B48: AMAZONAS | C48: CONDORCANQUI | D48: RIO SANTIAGO | E48: 010403 | F48: 1045 | G48: 117 | H48: 11.19617225 | I48: 72 | J48: 6.889952153 | K48: 44 | L48: 4.210526316 | M48: 1 | N48: 0.0956937799
B49: AMAZONAS | C49: LUYA | D49: LAMUD | E49: 010501 | F49: 49 | G49: 6 | H49: 12.24489796 | I49: 5 | J49: 10.20408163 | K49: 1 | L49: 2.040816327 | M49: 0 | N49: 0
B50: AMAZONAS | C50: LUYA | D50: CAMPORREDONDO | E50: 010502 | F50: 157 | G50: 30 | H50: 19.10828025 | I50: 24 | J50: 15.2866242 | K50: 6 | L50: 3.821656051 | M50: 0 | N50: 0
B51: AMAZONAS | C51: LUYA | D51: COCABAMBA | E51: 010503 | F51: 41 | G51: 8 | H51: 19.51219512 | I51: 5 | J51: 12.19512195 | K51: 3 | L51: 7.317073171 | M51: 0 | N51: 0
B52: AMAZONAS | C52: LUYA | D52: COLCAMAR | E52: 010504 | F52: 17 | G52: 2 | H52: 11.76470588 | I52: 1 | J52: 5.882352941 | K52: 1 | L52: 5.882352941 | M52: 0 | N52: 0
B53: AMAZONAS | C53: LUYA | D53: CONILA | E53: 010505 | F53: 16 | G53: 1 | H53: 6.25 | I53: 1 | J53: 6.25 | K53: 0 | L53: 0 | M53: 0 | N53: 0
B54: AMAZONAS | C54: LUYA | D54: INGUILPATA | E54: 010506 | F54: * | G54: * | H54: * | I54: * | J54: * | K54: * | L54: * | M54: * | N54: *
B55: AMAZONAS | C55: LUYA | D55: LONGUITA | E55: 010507 | F55: 8 | G55: 1 | H55: 12.5 | I55: 0 | J55: 0 | K55: 1 | L55: 12.5 | M55: 0 | N55: 0
B56: AMAZONAS | C56: LUYA | D56: LONYA CHICO | E56: 010508 | F56: 11 | G56: 0 | H56: 0 | I56: 0 | J56: 0 | K56: 0 | L56: 0 | M56: 0 | N56: 0
B57: AMAZONAS | C57: LUYA | D57: LUYA | E57: 010509 | F57: 37 | G57: 7 | H57: 18.91891892 | I57: 6 | J57: 16.21621622 | K57: 1 | L57: 2.702702703 | M57: 0 | N57: 0
B58: AMAZONAS | C58: LUYA | D58: LUYA VIEJO | E58: 010510 | F58: 10 | G58: 0 | H58: 0 | I58: 0 | J58: 0 | K58: 0 | L58: 0 | M58: 0 | N58: 0
B59: AMAZONAS | C59: LUYA | D59: MARIA | E59: 010511 | F59: 8 | G59: 0 | H59: 0 | I59: 0 | J59: 0 | K59: 0 | L59: 0 | M59: 0 | N59: 0
B60: AMAZONAS | C60: LUYA | D60: OCALLI | E60: 010512 | F60: 38 | G60: 2 | H60: 5.263157895 | I60: 1 | J60: 2.631578947 | K60: 1 | L60: 2.631578947 | M60: 0 | N60: 0
B61: AMAZONAS | C61: LUYA | D61: OCUMAL | E61: 010513 | F61: 63 | G61: 11 | H61: 17.46031746 | I61: 7 | J61: 11.11111111 | K61: 4 | L61: 6.349206349 | M61: 0 | N61: 0
B62: AMAZONAS | C62: LUYA | D62: PISUQUIA | E62: 010514 | F62: 46 | G62: 9 | H62: 19.56521739 | I62: 8 | J62: 17.39130435 | K62: 1 | L62: 2.173913043 | M62: 0 | N62: 0
B63: AMAZONAS | C63: LUYA | D63: PROVIDENCIA | E63: 010515 | F63: 38 | G63: 1 | H63: 2.631578947 | I63: 1 | J63: 2.631578947 | K63: 0 | L63: 0 | M63: 0 | N63: 0
B64: AMAZONAS | C64: LUYA | D64: SAN CRISTOBAL | E64: 010516 | F64: 7 | G64: 0 | H64: 0 | I64: 0 | J64: 0 | K64: 0 | L64: 0 | M64: 0 | N64: 0
B65: AMAZONAS | C65: LUYA | D65: SAN FRANCISCO DE YESO | E65: 010517 | F65: 7 | G65: 0 | H65: 0 | I65: 0 | J65: 0 | K65: 0 | L65: 0 | M65: 0 | N65: 0
B66: AMAZONAS | C66: LUYA | D66: SAN JERONIMO | E66: 010518 | F66: * | G66: * | H66: * | I66: * | J66: * | K66: * | L66: * | M66: * | N66: *
B67: AMAZONAS | C67: LUYA | D67: SAN JUAN DE LOPECANCHA | E67: 010519 | F67: * | G67: * | H67: * | I67: * | J67: * | K67: * | L67: * | M67: * | N67: *
B68: AMAZONAS | C68: LUYA | D68: SANTA CATALINA | E68: 010520 | F68: 31 | G68: 6 | H68: 19.35483871 | I68: 2 | J68: 6.451612903 | K68: 3 | L68: 9.677419355 | M68: 1 | N68: 3.225806452
B69: AMAZONAS | C69: LUYA | D69: SANTO TOMAS | E69: 010521 | F69: 36 | G69: 7 | H69: 19.44444444 | I69: 6 | J69: 16.66666667 | K69: 1 | L69: 2.777777778 | M69: 0 | N69: 0
B70: AMAZONAS | C70: LUYA | D70: TINGO | E70: 010522 | F70: 11 | G70: 1 | H70: 9.090909091 | I70: 1 | J70: 9.090909091 | K70: 0 | L70: 0 | M70: 0 | N70: 0
B71: AMAZONAS | C71: LUYA | D71: TRITA | E71: 010523 | F71: 25 | G71: 4 | H71: 16 | I71: 4 | J71: 16 | K71: 0 | L71: 0 | M71: 0 | N71: 0
B72: AMAZONAS | C72: RODRIGUEZ DE MENDOZA | D72: SAN NICOLAS | E72: 010601 | F72: 101 | G72: 5 | H72: 4.95049505 | I72: 5 | J72: 4.95049505 | K72: 0 | L72: 0 | M72: 0 | N72: 0
B73: AMAZONAS | C73: RODRIGUEZ DE MENDOZA | D73: CHIRIMOTO | E73: 010602 | F73: 10 | G73: 0 | H73: 0 | I73: 0 | J73: 0 | K73: 0 | L73: 0 | M73: 0 | N73: 0
B74: AMAZONAS | C74: RODRIGUEZ DE MENDOZA | D74: COCHAMAL | E74: 010603 | F74: (SD) | G74: (SD) | H74: (SD) | I74: (SD) | J74: (SD) | K74: (SD) | L74: (SD) | M74: (SD) | N74: (SD)
B75: AMAZONAS | C75: RODRIGUEZ DE MENDOZA | D75: HUAMBO | E75: 010604 | F75: 19 | G75: 0 | H75: 0 | I75: 0 | J75: 0 | K75: 0 | L75: 0 | M75: 0 | N75: 0
B76: AMAZONAS | C76: RODRIGUEZ DE MENDOZA | D76: LIMABAMBA | E76: 010605 | F76: (SD) | G76: (SD) | H76: (SD) | I76: (SD) | J76: (SD) | K76: (SD) | L76: (SD) | M76: (SD) | N76: (SD)
B77: AMAZONAS | C77: RODRIGUEZ DE MENDOZA | D77: LONGAR | E77: 010606 | F77: (SD) | G77: (SD) | H77: (SD) | I77: (SD) | J77: (SD) | K77: (SD) | L77: (SD) | M77: (SD) | N77: (SD)
B78: AMAZONAS | C78: RODRIGUEZ DE MENDOZA | D78: MARISCAL BENAVIDES | E78: 010607 | F78: (SD) | G78: (SD) | H78: (SD) | I78: (SD) | J78: (SD) | K78: (SD) | L78: (SD) | M78: (SD) | N78: (SD)
B79: AMAZONAS | C79: RODRIGUEZ DE MENDOZA | D79: MILPUC | E79: 010608 | F79: * | G79: * | H79: * | I79: * | J79: * | K79: * | L79: * | M79: * | N79: *
B80: AMAZONAS | C80: RODRIGUEZ DE MENDOZA | D80: OMIA | E80: 010609 | F80: 23 | G80: 3 | H80: 13.04347826 | I80: 2 | J80: 8.695652174 | K80: 1 | L80: 4.347826087 | M80: 0 | N80: 0
B81: AMAZONAS | C81: RODRIGUEZ DE MENDOZA | D81: SANTA ROSA | E81: 010610 | F81: (SD) | G81: (SD) | H81: (SD) | I81: (SD) | J81: (SD) | K81: (SD) | L81: (SD) | M81: (SD) | N81: (SD)
B82: AMAZONAS | C82: RODRIGUEZ DE MENDOZA | D82: TOTORA | E82: 010611 | F82: (SD) | G82: (SD) | H82: (SD) | I82: (SD) | J82: (SD) | K82: (SD) | L82: (SD) | M82: (SD) | N82: (SD)
B83: AMAZONAS | C83: RODRIGUEZ DE MENDOZA | D83: VISTA ALEGRE | E83: 010612 | F83: 5 | G83: 0 | H83: 0 | I83: 0 | J83: 0 | K83: 0 | L83: 0 | M83: 0 | N83: 0
B84: AMAZONAS | C84: UTCUBAMBA | D84: BAGUA GRANDE | E84: 010701 | F84: 734 | G84: 114 | H84: 15.53133515 | I84: 82 | J84: 11.17166213 | K84: 32 | L84: 4.359673025 | M84: 0 | N84: 0
B85: AMAZONAS | C85: UTCUBAMBA | D85: CAJARURO | E85: 010702 | F85: 401 | G85: 38 | H85: 9.476309227 | I85: 34 | J85: 8.478802993 | K85: 4 | L85: 0.9975062344 | M85: 0 | N85: 0
B86: AMAZONAS | C86: UTCUBAMBA | D86: CUMBA | E86: 010703 | F86: 162 | G86: 24 | H86: 14.81481481 | I86: 22 | J86: 13.58024691 | K86: 2 | L86: 1.234567901 | M86: 0 | N86: 0
B87: AMAZONAS | C87: UTCUBAMBA | D87: EL MILAGRO | E87: 010704 | F87: 160 | G87: 19 | H87: 11.875 | I87: 17 | J87: 10.625 | K87: 2 | L87: 1.25 | M87: 0 | N87: 0
B88: AMAZONAS | C88: UTCUBAMBA | D88: JAMALCA | E88: 010705 | F88: 53 | G88: 5 | H88: 9.433962264 | I88: 4 | J88: 7.547169811 | K88: 1 | L88: 1.886792453 | M88: 0 | N88: 0
B89: AMAZONAS | C89: UTCUBAMBA | D89: LONYA GRANDE | E89: 010706 | F89: 213 | G89: 13 | H89: 6.103286385 | I89: 6 | J89: 2.816901408 | K89: 7 | L89: 3.286384977 | M89: 0 | N89: 0
B90: AMAZONAS | C90: UTCUBAMBA | D90: YAMON | E90: 010707 | F90: 71 | G90: 6 | H90: 8.450704225 | I90: 4 | J90: 5.633802817 | K90: 2 | L90: 2.816901408 | M90: 0 | N90: 0
B91: ANCASH | C91: HUARAZ | D91: HUARAZ | E91: 020101 | F91: 1238 | G91: 352 | H91: 28.43295638 | I91: 200 | J91: 16.15508885 | K91: 152 | L91: 12.27786753 | M91: 0 | N91: 0
B92: ANCASH | C92: HUARAZ | D92: COCHABAMBA | E92: 020102 | F92: 29 | G92: 19 | H92: 65.51724138 | I92: 9 | J92: 31.03448276 | K92: 10 | L92: 34.48275862 | M92: 0 | N92: 0
B93: ANCASH | C93: HUARAZ | D93: COLCABAMBA | E93: 020103 | F93: * | G93: * | H93: * | I93: * | J93: * | K93: * | L93: * | M93: * | N93: *
B94: ANCASH | C94: HUARAZ | D94: HUANCHAY | E94: 020104 | F94: 15 | G94: 4 | H94: 26.66666667 | I94: 3 | J94: 20 | K94: 1 | L94: 6.666666667 | M94: 0 | N94: 0
B95: ANCASH | C95: HUARAZ | D95: INDEPENDENCIA | E95: 020105 | F95: 1004 | G95: 356 | H95: 35.45816733 | I95: 163 | J95: 16.23505976 | K95: 189 | L95: 18.8247012 | M95: 4 | N95: 0.3984063745
B96: ANCASH | C96: HUARAZ | D96: JANGAS | E96: 020106 | F96: 107 | G96: 8 | H96: 7.476635514 | I96: 4 | J96: 3.738317757 | K96: 4 | L96: 3.738317757 | M96: 0 | N96: 0
B97: ANCASH | C97: HUARAZ | D97: LA LIBERTAD | E97: 020107 | F97: 14 | G97: 7 | H97: 50 | I97: 3 | J97: 21.42857143 | K97: 4 | L97: 28.57142857 | M97: 0 | N97: 0
B98: ANCASH | C98: HUARAZ | D98: OLLEROS | E98: 020108 | F98: 33 | G98: 2 | H98: 6.060606061 | I98: 2 | J98: 6.060606061 | K98: 0 | L98: 0 | M98: 0 | N98: 0
B99: ANCASH | C99: HUARAZ | D99: PAMPAS GRANDE | E99: 020109 | F99: 8 | G99: 5 | H99: 62.5 | I99: 0 | J99: 0 | K99: 5 | L99: 62.5 | M99: 0 | N99: 0
B100: ANCASH | C100: HUARAZ | D100: PARIACOTO | E100: 020110 | F100: 109 | G100: 58 | H100: 53.21100917 | I100: 28 | J100: 25.68807339 | K100: 30 | L100: 27.52293578 | M100: 0 | N100: 0
B101: ANCASH | C101: HUARAZ | D101: PIRA | E101: 020111 | F101: 59 | G101: 15 | H101: 25.42372881 | I101: 9 | J101: 15.25423729 | K101: 6 | L101: 10.16949153 | M101: 0 | N101: 0
B102: ANCASH | C102: HUARAZ | D102: TARICA | E102: 020112 | F102: 79 | G102: 19 | H102: 24.05063291 | I102: 9 | J102: 11.39240506 | K102: 10 | L102: 12.65822785 | M102: 0 | N102: 0
B103: ANCASH | C103: AIJA | D103: AIJA | E103: 020201 | F103: 21 | G103: 9 | H103: 42.85714286 | I103: 6 | J103: 28.57142857 | K103: 3 | L103: 14.28571429 | M103: 0 | N103: 0
B104: ANCASH | C104: AIJA | D104: CORIS | E104: 020202 | F104: 24 | G104: 11 | H104: 45.83333333 | I104: 3 | J104: 12.5 | K104: 8 | L104: 33.33333333 | M104: 0 | N104: 0
B105: ANCASH | C105: AIJA | D105: HUACLLAN | E105: 020203 | F105: * | G105: * | H105: * | I105: * | J105: * | K105: * | L105: * | M105: * | N105: *
B106: ANCASH | C106: AIJA | D106: LA MERCED | E106: 020204 | F106: 28 | G106: 3 | H106: 10.71428571 | I106: 1 | J106: 3.571428571 | K106: 2 | L106: 7.142857143 | M106: 0 | N106: 0
B107: ANCASH | C107: AIJA | D107: SUCCHA | E107: 020205 | F107: 6 | G107: 1 | H107: 16.66666667 | I107: 0 | J107: 0 | K107: 1 | L107: 16.66666667 | M107: 0 | N107: 0
B108: ANCASH | C108: ANTONIO RAYMONDI | D108: LLAMELLIN | E108: 020301 | F108: 20 | G108: 8 | H108: 40 | I108: 5 | J108: 25 | K108: 3 | L108: 15 | M108: 0 | N108: 0
B109: ANCASH | C109: ANTONIO RAYMONDI | D109: ACZO | E109: 020302 | F109: 14 | G109: 2 | H109: 14.28571429 | I109: 2 | J109: 14.28571429 | K109: 0 | L109: 0 | M109: 0 | N109: 0
B110: ANCASH | C110: ANTONIO RAYMONDI | D110: CHACCHO | E110: 020303 | F110: 10 | G110: 5 | H110: 50 | I110: 1 | J110: 10 | K110: 4 | L110: 40 | M110: 0 | N110: 0
B111: ANCASH | C111: ANTONIO RAYMONDI | D111: CHINGAS | E111: 020304 | F111: 9 | G111: 2 | H111: 22.22222222 | I111: 1 | J111: 11.11111111 | K111: 1 | L111: 11.11111111 | M111: 0 | N111: 0
B112: ANCASH | C112: ANTONIO RAYMONDI | D112: MIRGAS | E112: 020305 | F112: 35 | G112: 16 | H112: 45.71428571 | I112: 7 | J112: 20 | K112: 9 | L112: 25.71428571 | M112: 0 | N112: 0
B113: ANCASH | C113: ANTONIO RAYMONDI | D113: SAN JUAN DE RONTOY | E113: 020306 | F113: 13 | G113: 7 | H113: 53.84615385 | I113: 4 | J113: 30.76923077 | K113: 3 | L113: 23.07692308 | M113: 0 | N113: 0
B114: ANCASH | C114: ASUNCION | D114: CHACAS | E114: 020401 | F114: 103 | G114: 17 | H114: 16.50485437 | I114: 7 | J114: 6.796116505 | K114: 8 | L114: 7.766990291 | M114: 2 | N114: 1.941747573
B115: ANCASH | C115: ASUNCION | D115: ACOCHACA | E115: 020402 | F115: 46 | G115: 2 | H115: 4.347826087 | I115: 1 | J115: 2.173913043 | K115: 1 | L115: 2.173913043 | M115: 0 | N115: 0
B116: ANCASH | C116: BOLOGNESI | D116: CHIQUIAN | E116: 020501 | F116: 24 | G116: 10 | H116: 41.66666667 | I116: 4 | J116: 16.66666667 | K116: 5 | L116: 20.83333333 | M116: 1 | N116: 4.166666667
B117: ANCASH | C117: BOLOGNESI | D117: ABELARDO PARDO LEZAMETA | E117: 020502 | F117: * | G117: * | H117: * | I117: * | J117: * | K117: * | L117: * | M117: * | N117: *
B118: ANCASH | C118: BOLOGNESI | D118: ANTONIO RAYMONDI | E118: 020503 | F118: 8 | G118: 1 | H118: 12.5 | I118: 0 | J118: 0 | K118: 1 | L118: 12.5 | M118: 0 | N118: 0
B119: ANCASH | C119: BOLOGNESI | D119: AQUIA | E119: 020504 | F119: 19 | G119: 11 | H119: 57.89473684 | I119: 6 | J119: 31.57894737 | K119: 5 | L119: 26.31578947 | M119: 0 | N119: 0
B120: ANCASH | C120: BOLOGNESI | D120: CAJACAY | E120: 020505 | F120: 8 | G120: 3 | H120: 37.5 | I120: 3 | J120: 37.5 | K120: 0 | L120: 0 | M120: 0 | N120: 0
B121: ANCASH | C121: BOLOGNESI | D121: CANIS | E121: 020506 | F121: (SD) | G121: (SD) | H121: (SD) | I121: (SD) | J121: (SD) | K121: (SD) | L121: (SD) | M121: (SD) | N121: (SD)
B122: ANCASH | C122: BOLOGNESI | D122: COLQUIOC | E122: 020507 | F122: 42 | G122: 2 | H122: 4.761904762 | I122: 1 | J122: 2.380952381 | K122: 1 | L122: 2.380952381 | M122: 0 | N122: 0
B123: ANCASH | C123: BOLOGNESI | D123: HUALLANCA | E123: 020508 | F123: 128 | G123: 56 | H123: 43.75 | I123: 25 | J123: 19.53125 | K123: 30 | L123: 23.4375 | M123: 1 | N123: 0.78125
B124: ANCASH | C124: BOLOGNESI | D124: HUASTA | E124: 020509 | F124: 14 | G124: 5 | H124: 35.71428571 | I124: 3 | J124: 21.42857143 | K124: 2 | L124: 14.28571429 | M124: 0 | N124: 0
B125: ANCASH | C125: BOLOGNESI | D125: HUAYLLACAYAN | E125: 020510 | F125: 20 | G125: 10 | H125: 50 | I125: 4 | J125: 20 | K125: 6 | L125: 30 | M125: 0 | N125: 0
B126: ANCASH | C126: BOLOGNESI | D126: LA PRIMAVERA | E126: 020511 | F126: 5 | G126: 1 | H126: 20 | I126: 1 | J126: 20 | K126: 0 | L126: 0 | M126: 0 | N126: 0
B127: ANCASH | C127: BOLOGNESI | D127: MANGAS | E127: 020512 | F127: 6 | G127: 1 | H127: 16.66666667 | I127: 0 | J127: 0 | K127: 1 | L127: 16.66666667 | M127: 0 | N127: 0
B128: ANCASH | C128: BOLOGNESI | D128: PACLLON | E128: 020513 | F128: 13 | G128: 7 | H128: 53.84615385 | I128: 3 | J128: 23.07692308 | K128: 4 | L128: 30.76923077 | M128: 0 | N128: 0
B129: ANCASH | C129: BOLOGNESI | D129: SAN MIGUEL DE CORPANQUI | E129: 020514 | F129: * | G129: * | H129: * | I129: * | J129: * | K129: * | L129: * | M129: * | N129: *
B130: ANCASH | C130: BOLOGNESI | D130: TICLLOS | E130: 020515 | F130: 6 | G130: 5 | H130: 83.33333333 | I130: 0 | J130: 0 | K130: 4 | L130: 66.66666667 | M130: 1 | N130: 16.66666667
B131: ANCASH | C131: CARHUAZ | D131: CARHUAZ | E131: 020601 | F131: 266 | G131: 35 | H131: 13.15789474 | I131: 27 | J131: 10.15037594 | K131: 8 | L131: 3.007518797 | M131: 0 | N131: 0
B132: ANCASH | C132: CARHUAZ | D132: ACOPAMPA | E132: 020602 | F132: 46 | G132: 8 | H132: 17.39130435 | I132: 3 | J132: 6.52173913 | K132: 5 | L132: 10.86956522 | M132: 0 | N132: 0
B133: ANCASH | C133: CARHUAZ | D133: AMASHCA | E133: 020603 | F133: 19 | G133: 10 | H133: 52.63157895 | I133: 5 | J133: 26.31578947 | K133: 5 | L133: 26.31578947 | M133: 0 | N133: 0
B134: ANCASH | C134: CARHUAZ | D134: ANTA | E134: 020604 | F134: 41 | G134: 7 | H134: 17.07317073 | I134: 5 | J134: 12.19512195 | K134: 2 | L134: 4.87804878 | M134: 0 | N134: 0
B135: ANCASH | C135: CARHUAZ | D135: ATAQUERO | E135: 020605 | F135: 32 | G135: 7 | H135: 21.875 | I135: 7 | J135: 21.875 | K135: 0 | L135: 0 | M135: 0 | N135: 0
B136: ANCASH | C136: CARHUAZ | D136: MARCARA | E136: 020606 | F136: 88 | G136: 8 | H136: 9.090909091 | I136: 5 | J136: 5.681818182 | K136: 3 | L136: 3.409090909 | M136: 0 | N136: 0
B137: ANCASH | C137: CARHUAZ | D137: PARIAHUANCA | E137: 020607 | F137: 15 | G137: 1 | H137: 6.666666667 | I137: 1 | J137: 6.666666667 | K137: 0 | L137: 0 | M137: 0 | N137: 0
B138: ANCASH | C138: CARHUAZ | D138: SAN MIGUEL DE ACO | E138: 020608 | F138: 33 | G138: 8 | H138: 24.24242424 | I138: 1 | J138: 3.03030303 | K138: 7 | L138: 21.21212121 | M138: 0 | N138: 0
B139: ANCASH | C139: CARHUAZ | D139: SHILLA | E139: 020609 | F139: 48 | G139: 20 | H139: 41.66666667 | I139: 12 | J139: 25 | K139: 7 | L139: 14.58333333 | M139: 1 | N139: 2.083333333
B140: ANCASH | C140: CARHUAZ | D140: TINCO | E140: 020610 | F140: 55 | G140: 7 | H140: 12.72727273 | I140: 5 | J140: 9.090909091 | K140: 2 | L140: 3.636363636 | M140: 0 | N140: 0
B141: ANCASH | C141: CARHUAZ | D141: YUNGAR | E141: 020611 | F141: 76 | G141: 26 | H141: 34.21052632 | I141: 17 | J141: 22.36842105 | K141: 9 | L141: 11.84210526 | M141: 0 | N141: 0
B142: ANCASH | C142: CARLOS FERMIN FITZCARRALD | D142: SAN LUIS | E142: 020701 | F142: 129 | G142: 25 | H142: 19.37984496 | I142: 16 | J142: 12.40310078 | K142: 9 | L142: 6.976744186 | M142: 0 | N142: 0
B143: ANCASH | C143: CARLOS FERMIN FITZCARRALD | D143: SAN NICOLAS | E143: 020702 | F143: 80 | G143: 26 | H143: 32.5 | I143: 6 | J143: 7.5 | K143: 19 | L143: 23.75 | M143: 1 | N143: 1.25
B144: ANCASH | C144: CARLOS FERMIN FITZCARRALD | D144: YAUYA | E144: 020703 | F144: 82 | G144: 17 | H144: 20.73170732 | I144: 9 | J144: 10.97560976 | K144: 8 | L144: 9.756097561 | M144: 0 | N144: 0
B145: ANCASH | C145: CASMA | D145: CASMA | E145: 020801 | F145: 115 | G145: 17 | H145: 14.7826087 | I145: 11 | J145: 9.565217391 | K145: 6 | L145: 5.217391304 | M145: 0 | N145: 0
B146: ANCASH | C146: CASMA | D146: BUENA VISTA ALTA | E146: 020802 | F146: 92 | G146: 6 | H146: 6.52173913 | I146: 6 | J146: 6.52173913 | K146: 0 | L146: 0 | M146: 0 | N146: 0
B147: ANCASH | C147: CASMA | D147: COMANDANTE NOEL | E147: 020803 | F147: 54 | G147: 14 | H147: 25.92592593 | I147: 7 | J147: 12.96296296 | K147: 7 | L147: 12.96296296 | M147: 0 | N147: 0
B148: ANCASH | C148: CASMA | D148: YAUTAN | E148: 020804 | F148: 135 | G148: 30 | H148: 22.22222222 | I148: 15 | J148: 11.11111111 | K148: 15 | L148: 11.11111111 | M148: 0 | N148: 0
B149: ANCASH | C149: CORONGO | D149: CORONGO | E149: 020901 | F149: * | G149: * | H149: * | I149: * | J149: * | K149: * | L149: * | M149: * | N149: *
B150: ANCASH | C150: CORONGO | D150: ACO | E150: 020902 | F150: * | G150: * | H150: * | I150: * | J150: * | K150: * | L150: * | M150: * | N150: *
B151: ANCASH | C151: CORONGO | D151: BAMBAS | E151: 020903 | F151: * | G151: * | H151: * | I151: * | J151: * | K151: * | L151: * | M151: * | N151: *
B152: ANCASH | C152: CORONGO | D152: CUSCA | E152: 020904 | F152: 32 | G152: 12 | H152: 37.5 | I152: 7 | J152: 21.875 | K152: 5 | L152: 15.625 | M152: 0 | N152: 0
B153: ANCASH | C153: CORONGO | D153: LA PAMPA | E153: 020905 | F153: * | G153: * | H153: * | I153: * | J153: * | K153: * | L153: * | M153: * | N153: *
B154: ANCASH | C154: CORONGO | D154: YANAC | E154: 020906 | F154: 11 | G154: 0 | H154: 0 | I154: 0 | J154: 0 | K154: 0 | L154: 0 | M154: 0 | N154: 0
B155: ANCASH | C155: CORONGO | D155: YUPAN | E155: 020907 | F155: (SD) | G155: (SD) | H155: (SD) | I155: (SD) | J155: (SD) | K155: (SD) | L155: (SD) | M155: (SD) | N155: (SD)
B156: ANCASH | C156: HUARI | D156: HUARI | E156: 021001 | F156: 232 | G156: 71 | H156: 30.60344828 | I156: 34 | J156: 14.65517241 | K156: 37 | L156: 15.94827586 | M156: 0 | N156: 0
B157: ANCASH | C157: HUARI | D157: ANRA | E157: 021002 | F157: 18 | G157: 0 | H157: 0 | I157: 0 | J157: 0 | K157: 0 | L157: 0 | M157: 0 | N157: 0
B158: ANCASH | C158: HUARI | D158: CAJAY | E158: 021003 | F158: 34 | G158: 3 | H158: 8.823529412 | I158: 2 | J158: 5.882352941 | K158: 1 | L158: 2.941176471 | M158: 0 | N158: 0
B159: ANCASH | C159: HUARI | D159: CHAVIN DE HUANTAR | E159: 021004 | F159: 114 | G159: 15 | H159: 13.15789474 | I159: 10 | J159: 8.771929825 | K159: 5 | L159: 4.385964912 | M159: 0 | N159: 0
B160: ANCASH | C160: HUARI | D160: HUACACHI | E160: 021005 | F160: 25 | G160: 5 | H160: 20 | I160: 3 | J160: 12 | K160: 2 | L160: 8 | M160: 0 | N160: 0
B161: ANCASH | C161: HUARI | D161: HUACCHIS | E161: 021006 | F161: 6 | G161: 0 | H161: 0 | I161: 0 | J161: 0 | K161: 0 | L161: 0 | M161: 0 | N161: 0
B162: ANCASH | C162: HUARI | D162: HUACHIS | E162: 021007 | F162: 46 | G162: 11 | H162: 23.91304348 | I162: 7 | J162: 15.2173913 | K162: 4 | L162: 8.695652174 | M162: 0 | N162: 0
B163: ANCASH | C163: HUARI | D163: HUANTAR | E163: 021008 | F163: 42 | G163: 0 | H163: 0 | I163: 0 | J163: 0 | K163: 0 | L163: 0 | M163: 0 | N163: 0
B164: ANCASH | C164: HUARI | D164: MASIN | E164: 021009 | F164: 10 | G164: 4 | H164: 40 | I164: 4 | J164: 40 | K164: 0 | L164: 0 | M164: 0 | N164: 0
B165: ANCASH | C165: HUARI | D165: PAUCAS | E165: 021010 | F165: 13 | G165: 3 | H165: 23.07692308 | I165: 3 | J165: 23.07692308 | K165: 0 | L165: 0 | M165: 0 | N165: 0
B166: ANCASH | C166: HUARI | D166: PONTO | E166: 021011 | F166: 39 | G166: 14 | H166: 35.8974359 | I166: 7 | J166: 17.94871795 | K166: 7 | L166: 17.94871795 | M166: 0 | N166: 0
B167: ANCASH | C167: HUARI | D167: RAHUAPAMPA | E167: 021012 | F167: 12 | G167: 6 | H167: 50 | I167: 1 | J167: 8.333333333 | K167: 5 | L167: 41.66666667 | M167: 0 | N167: 0
B168: ANCASH | C168: HUARI | D168: RAPAYAN | E168: 021013 | F168: 25 | G168: 6 | H168: 24 | I168: 2 | J168: 8 | K168: 4 | L168: 16 | M168: 0 | N168: 0
B169: ANCASH | C169: HUARI | D169: SAN MARCOS | E169: 021014 | F169: 266 | G169: 33 | H169: 12.40601504 | I169: 19 | J169: 7.142857143 | K169: 14 | L169: 5.263157895 | M169: 0 | N169: 0
B170: ANCASH | C170: HUARI | D170: SAN PEDRO DE CHANA | E170: 021015 | F170: 69 | G170: 20 | H170: 28.98550725 | I170: 13 | J170: 18.84057971 | K170: 7 | L170: 10.14492754 | M170: 0 | N170: 0
B171: ANCASH | C171: HUARI | D171: UCO | E171: 021016 | F171: * | G171: * | H171: * | I171: * | J171: * | K171: * | L171: * | M171: * | N171: *
B172: ANCASH | C172: HUARMEY | D172: HUARMEY | E172: 021101 | F172: 168 | G172: 30 | H172: 17.85714286 | I172: 15 | J172: 8.928571429 | K172: 15 | L172: 8.928571429 | M172: 0 | N172: 0
B173: ANCASH | C173: HUARMEY | D173: COCHAPETI | E173: 021102 | F173: 5 | G173: 1 | H173: 20 | I173: 1 | J173: 20 | K173: 0 | L173: 0 | M173: 0 | N173: 0
B174: ANCASH | C174: HUARMEY | D174: CULEBRAS | E174: 021103 | F174: 42 | G174: 1 | H174: 2.380952381 | I174: 1 | J174: 2.380952381 | K174: 0 | L174: 0 | M174: 0 | N174: 0
B175: ANCASH | C175: HUARMEY | D175: HUAYAN | E175: 021104 | F175: 13 | G175: 2 | H175: 15.38461538 | I175: 2 | J175: 15.38461538 | K175: 0 | L175: 0 | M175: 0 | N175: 0
B176: ANCASH | C176: HUARMEY | D176: MALVAS | E176: 021105 | F176: 12 | G176: 3 | H176: 25 | I176: 1 | J176: 8.333333333 | K176: 2 | L176: 16.66666667 | M176: 0 | N176: 0
B177: ANCASH | C177: HUAYLAS | D177: CARAZ | E177: 021201 | F177: 397 | G177: 76 | H177: 19.14357683 | I177: 45 | J177: 11.33501259 | K177: 29 | L177: 7.304785894 | M177: 2 | N177: 0.5037783375
B178: ANCASH | C178: HUAYLAS | D178: HUALLANCA | E178: 021202 | F178: 20 | G178: 6 | H178: 30 | I178: 4 | J178: 20 | K178: 2 | L178: 10 | M178: 0 | N178: 0
B179: ANCASH | C179: HUAYLAS | D179: HUATA | E179: 021203 | F179: 29 | G179: 2 | H179: 6.896551724 | I179: 2 | J179: 6.896551724 | K179: 0 | L179: 0 | M179: 0 | N179: 0
B180: ANCASH | C180: HUAYLAS | D180: HUAYLAS | E180: 021204 | F180: 17 | G180: 7 | H180: 41.17647059 | I180: 6 | J180: 35.29411765 | K180: 1 | L180: 5.882352941 | M180: 0 | N180: 0
B181: ANCASH | C181: HUAYLAS | D181: MATO | E181: 021205 | F181: 48 | G181: 7 | H181: 14.58333333 | I181: 5 | J181: 10.41666667 | K181: 2 | L181: 4.166666667 | M181: 0 | N181: 0
B182: ANCASH | C182: HUAYLAS | D182: PAMPAROMAS | E182: 021206 | F182: 194 | G182: 52 | H182: 26.80412371 | I182: 31 | J182: 15.97938144 | K182: 21 | L182: 10.82474227 | M182: 0 | N182: 0
B183: ANCASH | C183: HUAYLAS | D183: PUEBLO LIBRE | E183: 021207 | F183: 119 | G183: 46 | H183: 38.65546218 | I183: 27 | J183: 22.68907563 | K183: 17 | L183: 14.28571429 | M183: 2 | N183: 1.680672269
B184: ANCASH | C184: HUAYLAS | D184: SANTA CRUZ | E184: 021208 | F184: 97 | G184: 29 | H184: 29.89690722 | I184: 13 | J184: 13.40206186 | K184: 16 | L184: 16.49484536 | M184: 0 | N184: 0
B185: ANCASH | C185: HUAYLAS | D185: SANTO TORIBIO | E185: 021209 | F185: 17 | G185: 7 | H185: 41.17647059 | I185: 3 | J185: 17.64705882 | K185: 3 | L185: 17.64705882 | M185: 1 | N185: 5.882352941
B186: ANCASH | C186: HUAYLAS | D186: YURACMARCA | E186: 021210 | F186: 40 | G186: 7 | H186: 17.5 | I186: 2 | J186: 5 | K186: 5 | L186: 12.5 | M186: 0 | N186: 0
B187: ANCASH | C187: MARISCAL LUZURIAGA | D187: PISCOBAMBA | E187: 021301 | F187: 66 | G187: 10 | H187: 15.15151515 | I187: 5 | J187: 7.575757576 | K187: 5 | L187: 7.575757576 | M187: 0 | N187: 0
B188: ANCASH | C188: MARISCAL LUZURIAGA | D188: CASCA | E188: 021302 | F188: 58 | G188: 15 | H188: 25.86206897 | I188: 10 | J188: 17.24137931 | K188: 4 | L188: 6.896551724 | M188: 1 | N188: 1.724137931
B189: ANCASH | C189: MARISCAL LUZURIAGA | D189: ELEAZAR GUZMAN BARRON | E189: 021303 | F189: 19 | G189: 1 | H189: 5.263157895 | I189: 0 | J189: 0 | K189: 1 | L189: 5.263157895 | M189: 0 | N189: 0
B190: ANCASH | C190: MARISCAL LUZURIAGA | D190: FIDEL OLIVAS ESCUDERO | E190: 021304 | F190: 41 | G190: 6 | H190: 14.63414634 | I190: 4 | J190: 9.756097561 | K190: 2 | L190: 4.87804878 | M190: 0 | N190: 0
B191: ANCASH | C191: MARISCAL LUZURIAGA | D191: LLAMA | E191: 021305 | F191: 8 | G191: 0 | H191: 0 | I191: 0 | J191: 0 | K191: 0 | L191: 0 | M191: 0 | N191: 0
B192: ANCASH | C192: MARISCAL LUZURIAGA | D192: LLUMPA | E192: 021306 | F192: 112 | G192: 12 | H192: 10.71428571 | I192: 10 | J192: 8.928571429 | K192: 2 | L192: 1.785714286 | M192: 0 | N192: 0
B193: ANCASH | C193: MARISCAL LUZURIAGA | D193: LUCMA | E193: 021307 | F193: 33 | G193: 10 | H193: 30.3030303 | I193: 4 | J193: 12.12121212 | K193: 5 | L193: 15.15151515 | M193: 1 | N193: 3.03030303
B194: ANCASH | C194: MARISCAL LUZURIAGA | D194: MUSGA | E194: 021308 | F194: 6 | G194: 4 | H194: 66.66666667 | I194: 3 | J194: 50 | K194: 1 | L194: 16.66666667 | M194: 0 | N194: 0
B195: ANCASH | C195: OCROS | D195: OCROS | E195: 021401 | F195: 16 | G195: 4 | H195: 25 | I195: 2 | J195: 12.5 | K195: 2 | L195: 12.5 | M195: 0 | N195: 0
B196: ANCASH | C196: OCROS | D196: ACAS | E196: 021402 | F196: (SD) | G196: (SD) | H196: (SD) | I196: (SD) | J196: (SD) | K196: (SD) | L196: (SD) | M196: (SD) | N196: (SD)
B197: ANCASH | C197: OCROS | D197: CAJAMARQUILLA | E197: 021403 | F197: * | G197: * | H197: * | I197: * | J197: * | K197: * | L197: * | M197: * | N197: *
B198: ANCASH | C198: OCROS | D198: CARHUAPAMPA | E198: 021404 | F198: (SD) | G198: (SD) | H198: (SD) | I198: (SD) | J198: (SD) | K198: (SD) | L198: (SD) | M198: (SD) | N198: (SD)
B199: ANCASH | C199: OCROS | D199: COCHAS | E199: 021405 | F199: 9 | G199: 0 | H199: 0 | I199: 0 | J199: 0 | K199: 0 | L199: 0 | M199: 0 | N199: 0
B200: ANCASH | C200: OCROS | D200: CONGAS | E200: 021406 | F200: * | G200: * | H200: * | I200: * | J200: * | K200: * | L200: * | M200: * | N200: *
B201: ANCASH | C201: OCROS | D201: LLIPA | E201: 021407 | F201: * | G201: * | H201: * | I201: * | J201: * | K201: * | L201: * | M201: * | N201: *
B202: ANCASH | C202: OCROS | D202: SAN CRISTOBAL DE RAJAN | E202: 021408 | F202: * | G202: * | H202: * | I202: * | J202: * | K202: * | L202: * | M202: * | N202: *
... 1688 more rows
